{"text_format":"3","workbook":"xlsx","n_sheets":6,"sheets":["Krycí list - oblast podpory A","Příloha č.1 krycího listu","Příloha č.1 krycího listu (2)","Příloha č. 2 krycího listu","Příloha č. 2 krycího listu (2)","List3"],"not_rendered":{"images":2},"read":"whole","date_system":"1900"}

{"sheet":"Krycí list - oblast podpory A","index":0,"n_rows":307,"n_cols":42,"rows_kept":307,"merged":[[0,1,3,33],[5,1,5,24],[5,25,5,32],[6,1,6,8],[8,1,9,32],[10,1,10,32],[11,7,11,22],[11,26,11,32],[13,1,13,32],[14,9,14,22],[14,30,14,32],[15,6,15,22],[15,28,15,32],[17,1,17,32],[18,6,18,22],[18,26,18,32],[19,4,19,10],[19,14,19,32],[20,29,20,32],[21,4,21,22],[21,26,21,32],[23,1,23,32],[24,6,24,22],[24,26,24,32],[25,4,25,10],[25,14,25,32],[26,28,26,32],[27,4,27,22],[27,26,27,32],[29,1,30,32],[31,1,31,32],[32,9,32,22],[32,23,32,27],[33,10,33,22],[33,24,33,26],[34,23,34,27],[34,28,34,32],[35,6,35,22],[35,23,35,27],[35,28,35,32],[37,1,37,32],[38,1,38,32],[39,1,39,22],[39,23,39,27],[39,28,39,32],[40,2,40,22],[40,23,40,27],[40,28,40,32],[41,2,41,22],[41,23,41,27],[41,28,41,32],[42,2,42,22],[42,23,42,27],[42,28,42,32],[43,2,43,22],[43,23,43,27],[43,28,43,32],[44,2,44,22],[44,23,44,27],[44,28,44,32],[45,2,45,22],[45,23,45,27],[45,28,45,32],[46,1,46,22],[46,23,46,27],[46,28,46,32],[47,23,47,27],[47,28,47,32],[48,23,48,27],[48,28,48,32],[49,1,49,32],[50,1,50,32],[51,1,51,17],[51,18,51,22],[51,23,51,27],[51,28,51,32],[52,1,52,22],[52,23,52,27],[52,28,52,32],[53,1,53,22],[53,23,53,27],[53,28,53,32],[54,1,54,22],[54,23,54,27],[54,28,54,32],[55,1,55,22],[55,23,55,27],[55,28,55,32],[56,1,56,22],[56,23,56,27],[56,28,56,32],[57,1,57,22],[57,23,57,27],[57,28,57,32],[58,1,58,22],[58,23,58,27],[58,28,58,32],[60,1,60,32],[61,23,61,27],[62,23,62,27],[63,23,63,27],[64,23,64,27],[65,23,65,27],[67,1,68,32],[69,1,69,32],[70,1,70,32],[71,23,71,27],[72,23,72,27],[74,1,74,32],[75,1,75,32],[76,1,76,17],[76,18,76,22],[76,23,76,27],[76,28,76,32],[77,1,77,17],[77,18,77,22],[77,23,77,27],[78,1,78,17],[78,18,78,22],[78,23,78,27],[79,1,79,17],[79,18,79,22],[79,23,79,27],[80,1,80,17],[80,18,80,22],[80,23,80,27],[81,1,81,17],[81,18,81,22],[81,23,81,27],[83,1,83,32],[84,10,84,22],[84,23,84,27],[84,28,84,32],[85,1,85,9],[85,10,85,32],[86,6,86,16],[86,17,86,27],[86,28,86,32],[88,1,88,32],[89,12,89,22],[89,23,89,27],[89,28,89,32],[91,8,91,12],[91,23,91,27],[92,23,92,27],[93,23,93,27],[94,23,94,27],[95,1,95,32],[96,11,96,22],[96,23,96,27],[96,28,96,32],[97,11,97,22],[97,23,97,27],[97,28,97,32],[98,1,98,7],[98,8,98,32],[99,1,99,4],[99,5,99,32],[100,1,101,8],[100,10,100,32],[101,10,101,22],[101,23,101,27],[101,28,101,32],[102,9,102,12],[102,23,102,27],[102,28,102,32],[103,1,103,22],[103,23,103,27],[103,28,103,32],[104,1,104,22],[104,23,104,27],[104,28,104,32],[105,1,105,22],[105,23,105,27],[105,28,105,32],[106,1,106,22],[106,23,106,27],[106,28,106,32],[108,1,108,32],[109,23,109,27],[110,23,110,27],[111,23,111,27],[114,1,114,32],[115,12,115,24],[115,29,115,32],[116,1,116,5],[116,6,116,32],[117,23,117,27],[121,1,121,32],[122,23,122,32],[123,23,123,27],[124,23,124,27],[125,23,125,27],[126,23,126,27],[127,23,127,27],[128,23,128,27],[129,23,129,27],[130,23,130,27],[131,23,131,27],[133,1,133,32],[134,23,134,27],[135,23,135,27],[136,9,136,13],[136,23,136,27],[137,23,137,27],[138,23,138,27],[138,28,138,32],[144,1,144,32],[145,1,145,32],[146,1,146,22],[146,23,146,27],[146,28,146,32],[147,2,147,22],[147,23,147,27],[147,28,147,32],[148,2,148,22],[148,23,148,27],[148,28,148,32],[149,2,149,22],[149,23,149,27],[149,28,149,32],[150,2,150,22],[150,23,150,27],[150,28,150,32],[151,2,151,22],[151,23,151,27],[151,28,151,32],[152,2,152,22],[152,23,152,27],[152,28,152,32],[153,1,153,22],[153,23,153,27],[153,28,153,32],[154,1,154,22],[154,23,154,27],[154,28,154,32],[155,23,155,27],[155,28,155,32],[156,23,156,27],[156,28,156,32],[158,1,158,32],[159,1,159,32],[160,1,160,17],[160,18,160,22],[160,23,160,27],[160,28,160,32],[161,1,161,22],[161,23,161,27],[161,28,161,32],[162,1,162,22],[162,23,162,27],[162,28,162,32],[163,1,163,22],[163,23,163,27],[163,28,163,32],[164,1,164,22],[164,23,164,27],[164,28,164,32],[165,1,165,22],[165,23,165,27],[165,28,165,32],[166,1,166,22],[166,23,166,27],[166,28,166,32],[167,1,167,22],[167,23,167,27],[167,28,167,32],[168,23,168,27],[169,1,170,32],[171,1,173,32],[175,2,175,8],[175,11,175,17],[178,19,179,32],[180,1,181,32],[182,1,184,32],[185,2,185,8],[185,11,185,17],[187,19,187,32],[196,3,196,5],[196,7,196,10],[196,14,196,17]]}
[null,"Krycí list technických parametrů k žádosti o podporu:    \nA - Snižování energetické náročnosti stávajících rodinných a bytových domů \n     (pro RD včetně kombinací s podoblastmi podpory C.1, C.3 a C.4)\n"]
[]
[]
[]
[null,"Upozornění: Struktura formuláře se nesmí měnit!"]
[1,"ČÍSLO ŽÁDOSTI "]
[2,"Žádám v podprogramu :",{"$nulls":7},"X","Rodinné domy",{"$nulls":10},"Bytové domy"]
[]
[null,"Část A - Identifikační údaje"]
[]
[null,"IDENTIFIKACE ŽADATELE"]
[3,"Příjmení / Název :",{"$nulls":5},"Černý",{"$nulls":15},"Jméno :",null,null,"Pavel"]
[]
[null,"IDENTIFIKACE NEMOVITOSTI"]
[4,"Katastrální území (číslo) :",{"$nulls":7},788228,{"$nulls":13},"Číslo listu vlastnictví :",{"$nulls":6},1635]
[5,"Číslo parcely :",{"$nulls":4},1772,{"$nulls":16},"Číslo popisné :",{"$nulls":4},257]
[]
[null,"IDENTIFIKACE ZPRACOVATELE PROJEKTOVÉ DOKUMENTACE"]
[6,"Příjmení / Název :",{"$nulls":4},"Projektant",{"$nulls":16},"Jméno :",null,null,"Petr"]
[{"$f":"1+A19","v":7},"Telefon :",null,null,{"v":987987987,"d":"987,987,987"},{"$nulls":6},"E-mail :",null,null,"Petr.projektant@email.cz"]
[{"$f":"1+A20","v":8},"Autorizovaná osoba",{"$nulls":21},"Číslo autorizace :",{"$nulls":5},123]
[{"$f":"1+A21","v":9},"Příjmení :",null,null,"Prokjektant",{"$nulls":18},"Jméno :",null,null,"Petr"]
[]
[null,"IDENTIFIKACE ZPRACOVATELE ENERGETICKÉHO HODNOCENÍ"]
[10,"Příjmení / Název :",{"$nulls":4},"DEKSOFT",{"$nulls":16},"Jméno :"]
[{"$f":"1+A25","v":11},"Telefon :",null,null,"234 234 234",{"$nulls":6},"E-mail :",null,null,"Jan.zeleny@email.cz"]
[{"$f":"1+A26","v":12},"Energetický specialista",{"$nulls":21},"Číslo oprávnění :",{"$nulls":4},15987]
[{"$f":"1+A27","v":13},"Příjmení :",null,null,"Zelený",{"$nulls":18},"Jméno :",null,null,"Jan"]
[]
[null,"Část B - Technické parametry budovy před realizací podporovaných opatření"]
[]
[null,"TYP BUDOVY"]
[14,"Počet bytových jednotek :",{"$nulls":21},1,{"$nulls":4},"b.j."]
[{"$f":"1+A33","v":15},"Památkově chráněná budova :",{"$nulls":22},"ano",null,null,"X","ne"]
[{"$f":"1+A34","v":16},"Období výstavby :",{"$nulls":21},"2. pol. 20. stol",{"$nulls":4},"rok"]
[{"$f":"1+A35","v":17},"Hlavní zdroj tepla:",{"$nulls":26},"emisní třídy"]
[]
[null,"ROZDĚLENÍ PODLE ENERGONOSITELŮ "]
[null,"Uveďte všechny energonositele před realizací podporovaných opatření."]
[null,"Energonositel",{"$nulls":21},"Dílčí vypočtená spotřeba energie /pomocná energie\n[MWh/rok]",{"$nulls":4},"Neobnovitelná primární energie\n[MWh/rok]"]
[{"$f":"1+A36","v":18},"1)","Elektřina",{"$nulls":20},{"v":0.87361,"d":"0.874"},{"$nulls":4},{"$f":"IF(ISNUMBER(X41),IF(ISTEXT(C41),(VLOOKUP(C41,$AI$243:$AP$258,8,FALSE))*X41,\"\"),\"\")","v":{"v":2.6208299999999998,"d":"2.621"}}]
[{"$f":"1+A41","v":19},"2)","Zemní plyn",{"$nulls":20},{"v":70.82463,"d":"70.825"},{"$nulls":4},{"v":77.907093,"d":"77.907"}]
[20,"3)",{"$nulls":26},""]
[21,"4)",{"$nulls":26},""]
[22,"5)",{"$nulls":26},""]
[23,"6)",{"$nulls":26},""]
[24,"Celkem",{"$nulls":21},{"$f":"IF(ISNUMBER(X41),IF(OR(C41=\"Elektřina - dodávka mimo budovu\",C41=\"Teplo - dodávka mimo budovu\"),0,X41)+IF(OR(C42=\"Elektřina - dodávka mimo budovu\",C42=\"Teplo - dodávka mimo budovu\"),0,X42)+IF(OR(C43=\"Elektřina - dodávka mimo budovu\",C43=\"Teplo - dodávka mimo budovu\"),0,X43)+IF(OR(C44=\"Elektřina - dodávka mimo budovu\",C44=\"Teplo - dodávka mimo budovu\"),0,X44)+IF(OR(C45=\"Elektřina - dodávka mimo budovu\",C45=\"Teplo - dodávka mimo budovu\"),0,X45)+IF(OR(C46=\"Elektřina - dodávka mimo budovu\",C46=\"Teplo - dodávka mimo budovu\"),0,X46),\"\")","v":{"v":71.69824,"d":"71.698"}},{"$nulls":4},{"$f":"IF(ISNUMBER(AC41),SUM(AC41:AG46),\"\")","v":{"v":80.527923,"d":"80.528"}}]
[25,"Referenční hodnota",{"$nulls":21},{"v":29.04056,"d":"29.041"},{"$nulls":4},{"v":32.54354,"d":"32.544"}]
[26,"Klasifikační třída",{"$nulls":21},"G",{"$nulls":4},"G"]
[null,"DÍLČÍ DODANÁ ENERGIE"]
[null,"Uveďte všechny dílčí dodané energie pro celou budovu před realizací podporovaných opatření"]
[null,"Technické systémy budovy",{"$nulls":21},"Dílčí dodaná energie\n[MWh/rok]",{"$nulls":4},"Procentuální zastoupení \n[%]"]
[{"$f":"1+A49","v":27},"Vytápění",{"$nulls":21},{"v":66.25914,"d":"66.259"},{"$nulls":4},{"$f":"IF(AND(ISNUMBER(X53),ISNUMBER($X$59)),X53/$X$59,\"\")","v":{"v":0.9241391314680991,"d":"92%"}}]
[{"$f":"1+A53","v":28},"Chlazení",{"$nulls":21},{"v":0,"d":"0.000"},{"$nulls":4},{"v":0,"d":"0%"}]
[29,"Větrání",{"$nulls":21},{"v":0,"d":"0.000"},{"$nulls":4},{"v":0,"d":"0%"}]
[30,"Úprava vlhkosti vzduchu",{"$nulls":21},{"v":0,"d":"0.000"},{"$nulls":4},{"v":0,"d":"0%"}]
[31,"Příprava teplé vody",{"$nulls":21},{"v":4.70845,"d":"4.708"},{"$nulls":4},{"v":0.0656703798685128,"d":"7%"}]
[32,"Osvětlení",{"$nulls":21},{"v":0.73064,"d":"0.731"},{"$nulls":4},{"v":0.010190488663388203,"d":"1%"}]
[33,"Celkem",{"$nulls":21},{"$f":"IF((SUM(X53:AB58)>0),SUM(X53:AB58),\"\")","v":{"v":71.69823,"d":"71.698"}},{"$nulls":4},{"$f":"IF((SUM(AC53:AG58)>0),SUM(AC53:AG58),\"\")","v":{"v":1,"d":"100%"}}]
[]
[null,"PARAMETRY BUDOVY"]
[{"$f":"A59+1","v":34},"Měrná potřeba tepla na vytápění EA :",{"$nulls":21},329,{"$nulls":4},"kWh.m-2.rok-1"]
[{"$f":"1+A62","v":35},"Průměrný součinitel prostupu tepla Uem :",{"$nulls":21},{"v":1.292254514084441,"d":"1.29"},{"$nulls":4},"W.m-2.K-1"]
[{"$f":"1+A63","v":36},"Referenční hodnota průměrného součinitele prostupu tepla Uem,R :",{"$nulls":21},{"v":0.3747553498862505,"d":"0.37"},{"$nulls":4},"W.m-2.K-1"]
[{"$f":"1+A64","v":37},"Faktor tvaru budovy A/V :",{"$nulls":21},0.82,{"$nulls":4},"m2/m3"]
[{"$f":"1+A65","v":38},"Celková energeticky vztažná plocha AC :",{"$nulls":21},{"v":127.6,"d":"127.60"},{"$nulls":4},"m2"]
[]
[null,"Část C - Technické údaje o podporovaných opatřeních"]
[]
[null,"PODPOROVANÁ OPATŘENÍ - ZATEPLENÍ KONSTRUKCÍ A VÝMĚNA VÝPLNÍ OTVORŮ"]
[null,"Technické údaje o podporovaných opatřeních uveďte na samostatné přílohy (příloha č. 1 - Soupis zateplovaných konstrukcí na obálce budovy a příloha č. 2 - Soupis měněných výplní otvoru na obálce budovy)."]
[{"$f":"1+A66","v":39},"Počet listů přílohy č. 1 :",{"$nulls":21},2,{"$nulls":4},"listů"]
[{"$f":"A72+1","v":40},"Počet listů přílohy č. 2 :",{"$nulls":21},2,{"$nulls":4},"listů"]
[]
[null,"VÝKAZ VÝMĚR KONSTRUKCÍ "]
[null,"Uveďte plochu konstrukcí podporovaných opatření (jedná se o součet ploch daných konstrukcí z příloh č.1  a č.2 ke krycím listům) a to zaokrouhlenou na jedno desetinné místo směrem dolů. Není-li daný typ konstrukce zastoupen, vyplňte nulovou hodnotu. ",{"$nulls":32},"Jsou-li orgánem památkové péče stanoveny podmínky určující zvláštní postup při provádění, platí pro danou část opatření zvýhodněný koeficient upravující výši dotace. Plochu těchto konstrukcí uveďte v tomto sloupci. \nHodnota pro daný typ konstrukce odpovíd"]
[null,"Typy konstrukcí",{"$nulls":16},"Plocha památkově chráněných kcí.",{"$nulls":4},"Plocha běžných konstrukcí",{"$nulls":4},"Jednotky"]
[{"$f":"1+A73","v":41},"Celková plocha zateplovaných obvodových stěn :",{"$nulls":21},67.7,{"$nulls":4},"m2",{"$nulls":5},"Plochu konstrukce, na které jsou stanoveny zvláštní poždavky památkovou péčí uveďte v tomto sloupci.Hodnota pro daný typ konstrukce odpovídá součtu ploch shodných typu konstrukcí uvedených Příloze č.1 a č.2 ke krycímu listu."]
[{"$f":"1+A78","v":42},"Celková plocha zateplované střechy :",{"$nulls":21},55.40000000000001,{"$nulls":4},"m2"]
[{"$f":"1+A79","v":43},"Celková plocha zateplované podlahy na terénu :",{"$nulls":21},86.4,{"$nulls":4},"m2"]
[{"$f":"1+A80","v":44},"Celková plocha měněných výplní stavebních otvorů :",{"$nulls":21},25,{"$nulls":4},"m2"]
[{"$f":"1+A81","v":45},"Celková plocha stropů a ostatních zateplovaných konstrukcí :",{"$nulls":21},59.3,{"$nulls":4},"m2"]
[]
[null,"PARAMETRY NOVÉHO ZDROJE TEPLA"]
[{"$f":"A82+1","v":46},"Název zdroje (typové označení) **:",{"$nulls":21},"Kód SVT *:"]
[{"$f":"1+A85","v":47},"Typ zdroje (podoblast podpory) :"]
[{"$f":"1+A86","v":48},"Emisní třída **:",{"$nulls":15},"Účinnost zdroje [%] / Topný faktor [-] **:"]
[]
[null,"SOLÁRNÍ TERMICKÝ SYSTÉM"]
[{"$f":"A87+1","v":49},"Název systému (typové označení) **:",{"$nulls":21},"Kód SVT *:"]
[{"$f":"1+A90","v":50},"Způsob využití :",{"$nulls":7},"pouze příprava teplé vody",{"$nulls":14},"příprava teplé vody a přitápění"]
[{"$f":"1+A91","v":51},"Počet kolektorů :",{"$nulls":11},"ks",null,"Celková plocha apertury :",{"$nulls":12},"m2"]
[{"$f":"1+A92","v":52},"Celkový využitelný zisk solárního systému QSS,u :",{"$nulls":26},"kWh.rok-1"]
[{"$f":"1+A93","v":53},"Měrný využitelný zisk solárního systému qSS,u :",{"$nulls":21},{"$f":"IF(AND(ISNUMBER(X93),ISNUMBER(X92)),X93/X92,\"\")","v":""},{"$nulls":4},"kWh.m-2.rok-1"]
[{"$f":"1+A94","v":54},"Solární podíl (pokrytí potřeby tepla) f :",{"$nulls":26},"%"]
[null,"SOLÁRNÍ FOTOVOLTAICKÝ SYSTÉM"]
[{"$f":"A94+1","v":54},"Název FV panelů (typové označení) **:",{"$nulls":21},"Kód SVT *:"]
[{"$f":"A97+1","v":55},"Název měniče (typové označení) **:",{"$nulls":21},"Kód SVT *:"]
[56,"Typ solárního kolektoru :"]
[57,"Typ systému :"]
[58,"Typ akumulace u FV systému připojeného do distribuční sítě:",{"$nulls":8},"akumulace energie do teplé vody"]
[59,{"$nulls":9},"do elektrických akumulátorů o kapacitě :",{"$nulls":17},"kWh"]
[60,"Počet kolektorů :",{"$nulls":11},"ks",{"$nulls":4},"Celková plocha :",{"$nulls":9},"m2"]
[61,"Roční spotřeba elektrické energie :",{"$nulls":26},"kWh"]
[62,"Instalovaný (špičkový) elektrický výkon :",{"$nulls":26},"kWp"]
[63,"Celkový využitelný zisk v budově : ",{"$nulls":26},"kWh.rok-1"]
[64,"Míra využití vyrobené elektřiny pro krytí spotřeby/Pokrytí potřeby tepla na přípravu TV :",{"$nulls":26},"%"]
[]
[null,"SYSTÉM PŘÍPAVY TEPLÉ VODY A VYTÁPĚNÍ"]
[{"$f":"A107+1","v":65},"Celkový objem zásobníků tepla na vytápění (ohřev TV řešen samostatně) :",{"$nulls":26},"l"]
[{"$f":"1+A110","v":66},"Celkový objem zásobníků teplé vody (ohřev TV řešen samostatně) :",{"$nulls":26},"l"]
[{"$f":"1+A111","v":67},"Celkový objem kombinovaných zásobníků tepla na vytápění a přípravu TV :",{"$nulls":26},"l"]
[{"$f":"1+A112","v":68},"Je použita cirkulace teplé vody :",{"$nulls":22},"ano",{"$nulls":4},"ne"]
[]
[null,"PARAMETRY SYSTÉMU NUCENÉHO VĚTRÁNÍ"]
[{"$f":"A113+1","v":69},"Název zařízení (typové označení) **:",{"$nulls":23},"Kód SVT **:"]
[{"$f":"1+A116","v":70},"Typ systému *:"]
[{"$f":"1+A117","v":71},"Účinnost zpětného získávání tepla :",{"$nulls":26},"%"]
[]
[null,"Část D - Technické parametry budovy po realizaci podporovaných opatření"]
[]
[null,"VLASTNOSTI BUDOVY"]
[{"$f":"1+A118","v":72},"Dosažená hladina podpory :",{"$nulls":21},"A.2"]
[{"$f":"1+A123","v":73},"Měrná potřeba tepla na vytápění EA :",{"$nulls":21},43,{"$nulls":4},"kWh.m-2.rok-1"]
[74,"Referenční hodnota měrné potřeby tepla na vytápění EA,R :",{"$nulls":21},{"v":55.43918879719,"d":"55"},{"$nulls":4},"kWh.m-2.rok-1"]
[75,"Procentuální snížení měrné potřeby tepla na vytápění :",{"$nulls":21},{"$f":"IF(AND(ISNUMBER(X124),ISNUMBER(X62)),1-X124/X62,\"\")","v":{"v":0.8693009118541033,"d":"87%"}},{"$nulls":4},"%"]
[76,"Referenční hodnota průměrného součinitele prostupu tepla Uem,R :",{"$nulls":21},{"v":0.3856671156701843,"d":"0.39"},{"$nulls":4},"W.m-2.K-1"]
[77,"Průměrný součinitel prostupu tepla Uem :",{"$nulls":21},{"v":0.3053611475779084,"d":"0.31"},{"$nulls":4},"W.m-2.K-1"]
[78,"Požadovaná hodnota Uem pro danou podoblast podpory :",{"$nulls":21},{"$f":"IF(AND(ISNUMBER(X127),ISNUMBER(X128),ISTEXT(X123)),IF(X123=\"A.0\",\"Bez požadavku\",IF(X123=\"A.1\",0.95*ROUND(X127,2),IF(X123=\"A.2\",0.85*ROUND(X127,2),IF(X123=\"A.3\",0.75*ROUND(X127,2))))),\"\")","v":{"v":0.3315,"d":"0.33"}},{"$nulls":4},"W.m-2.K-1"]
[79,"Faktor tvaru budovy A/V :",{"$nulls":21},0.55,{"$nulls":4},"m2/m3"]
[80,"Celková energeticky vztažná plocha AC :",{"$nulls":21},{"v":200,"d":"200.00"},{"$nulls":4},"m2"]
[81,"Naměřená průvzdušnost obálky budovy n50 **:",{"$nulls":21},4.5,{"$nulls":4},"h-1"]
[]
[null,"TYP BUDOVY"]
[{"$f":"A132+1","v":82},"Skutečný počet osob :",{"$nulls":21},4,{"$nulls":4},"osob"]
[{"$f":"1+A135","v":83},"Počet bytových jednotek :",{"$nulls":21},1,{"$nulls":4},"b.j."]
[{"$f":"1+A136","v":84},"Počet podzemních podlaží :",{"$nulls":21},1,{"$nulls":4},"podlaží"]
[{"$f":"1+A137","v":85},"Počet nadzemních podlaží :",{"$nulls":21},2,{"$nulls":4},"podlaží"]
[{"$f":"1+A138","v":86},"Vazba na okolní zástavbu :",{"$nulls":21},"volně stojící",{"$nulls":4},"-"]
[]
[]
[]
[]
[]
[null,"ROZDĚLENÍ PODLE ENERGONOSITELŮ "]
[null,"Uveďte všechny energonositele před realizací podporovaných opatření."]
[null,"Energonositel",{"$nulls":21},"Dílčí vypočtená spotřeba energie /pomocná energie\n[MWh/rok]",{"$nulls":4},"Neobnovitelná primární energie\n[MWh/rok]"]
[{"$f":"1+A139","v":87},"1)","Elektřina",{"$nulls":20},{"v":1.26394,"d":"1.264"},{"$nulls":4},{"$f":"IF(ISNUMBER(X148),IF(ISTEXT(C148),(VLOOKUP(C148,$AI$243:$AP$258,8,FALSE))*X148,\"\"),\"\")","v":{"v":3.7918200000000004,"d":"3.792"}}]
[{"$f":"1+A148","v":88},"2)","Zemní plyn",{"$nulls":20},{"v":16.11421,"d":"16.114"},{"$nulls":4},{"v":17.725631,"d":"17.726"}]
[89,"3)",{"$nulls":26},""]
[90,"4)",{"$nulls":26},""]
[91,"5)",{"$nulls":26},""]
[92,"6)",{"$nulls":26},""]
[93,"Celkem",{"$nulls":21},{"$f":"IF(ISNUMBER(X148),IF(OR(C148=\"Elektřina - dodávka mimo budovu\",C148=\"Teplo - dodávka mimo budovu\"),0,X148)+IF(OR(C149=\"Elektřina - dodávka mimo budovu\",C149=\"Teplo - dodávka mimo budovu\"),0,X149)+IF(OR(C150=\"Elektřina - dodávka mimo budovu\",C150=\"Teplo - dodávka mimo budovu\"),0,X150)+IF(OR(C151=\"Elektřina - dodávka mimo budovu\",C151=\"Teplo - dodávka mimo budovu\"),0,X151)+IF(OR(C152=\"Elektřina - dodávka mimo budovu\",C152=\"Teplo - dodávka mimo budovu\"),0,X152)+IF(OR(C153=\"Elektřina - dodávka mimo budovu\",C153=\"Teplo - dodávka mimo budovu\"),0,X153),\"\")","v":{"v":17.37815,"d":"17.378"}},{"$nulls":4},{"$f":"IF(ISNUMBER(AC148),SUM(AC148:AG153),\"\")","v":{"v":21.517451,"d":"21.517"}}]
[94,"Procentuální snížení energií oproti stavu před realizací opatření:",{"$nulls":21},{"$f":"IF(AND(ISNUMBER(X154),ISNUMBER(X47)),1-X154/X47,\"\")","v":{"v":0.7576209681018669,"d":"76%"}},{"$nulls":4},{"$f":"IF(AND(ISNUMBER(AC154),ISNUMBER(AC47)),1-AC154/AC47,\"\")","v":{"v":0.7327951572773086,"d":"73%"}}]
[95,"Referenční hodnota",{"$nulls":21},{"v":27.08507,"d":"27.085"},{"$nulls":4},31.19552]
[96,"Klasifikační třída",{"$nulls":21},"C",{"$nulls":4},"C"]
[]
[null,"DÍLČÍ DODANÁ ENERGIE"]
[null,"Uveďte všechny dílčí dodané energie pro celou budovu po realizaci podporovaných opatření"]
[null,"Technické systémy budovy",{"$nulls":21},"Dílčí dodaná energie\n[MWh/rok]",{"$nulls":4},"Procentuální zastoupení \n[%]"]
[{"$f":"1+A157","v":97},"Vytápění",{"$nulls":21},{"v":12.2928,"d":"12.293"},{"$nulls":4},{"$f":"IF(AND(ISNUMBER(X162),ISNUMBER($X$168)),X162/$X$168,\"\")","v":{"v":0.7073706307227001,"d":"71%"}}]
[{"$f":"A162+1","v":98},"Chlazení",{"$nulls":21},{"v":0,"d":"0.000"},{"$nulls":4},{"v":0,"d":"0%"}]
[{"$f":"1+A163","v":99},"Větrání",{"$nulls":21},{"v":0,"d":"0.000"},{"$nulls":4},{"v":0,"d":"0%"}]
[{"$f":"1+A164","v":100},"Úprava vlhkosti vzduchu",{"$nulls":21},{"v":0,"d":"0.000"},{"$nulls":4},{"v":0,"d":"0%"}]
[{"$f":"1+A165","v":101},"Příprava teplé vody",{"$nulls":21},{"v":3.95089,"d":"3.951"},{"$nulls":4},{"v":0.2273480046218932,"d":"23%"}]
[{"$f":"1+A166","v":102},"Osvětlení",{"$nulls":21},{"v":1.13447,"d":"1.134"},{"$nulls":4},{"v":0.06528136465540656,"d":"7%"}]
[{"$f":"1+A167","v":103},"Celkem",{"$nulls":21},{"$f":"IF((SUM(X162:AB167)>0),SUM(X162:AB167),\"\")","v":{"v":17.37816,"d":"17.378"}},{"$nulls":4},{"$f":"IF((SUM(AC162:AG167)>0),SUM(AC162:AG167),\"\")","v":{"v":0.9999999999999999,"d":"100%"}}]
[]
[null,"Část E - Prohlášení energetického specialisty"]
[]
[null,"Prohlašuji, že všechny údaje uvedené v tomto krycím listu technických parametrů a jeho přílohách jsou v souladu s odborným posudkem, který byl řádně vypracován dle platných právních předpisů a podmínek Programu. Jsem si vědom, že nepravdivost tohoto prohlášení může mít za následek sankce vyplývající z příslušných právních předpisů."]
[]
[]
[]
[{"$f":"1+A168","v":104},"V",{"$nulls":7},"dne",null,"1.7.2016"]
[]
[{"$nulls":19},"Ing. Jan Zelený CSc"]
[{"$nulls":19},"jméno, příjmení (hůlkovým písmem), podpis energetického specialisty"]
[]
[null,"Část F - Prohlášení žadatele o podporu"]
[]
[null,"Prohlašuji, že jsem se seznámil s odborným posudkem i se všemi údaji uvedenými v tomto krycím listu technických parametrů a že opatření, které má být podpořeno z programu Nová zelená úsporám, bude provedeno v souladu s odborným posudkem a s tímto krycím listem technických parametrů."]
[]
[]
[{"$f":"1+A176","v":105},"V",{"$nulls":7},"dne",null,{"$f":"NOW()","v":"2016-07-19T16:03:46.620"}]
[]
[{"$nulls":19},"jméno, příjmení (hůlkovým písmem) a podpis žadatele"]
{"$rows_empty":7}
[{"$nulls":34},"1 - Kotel na biomasu s ruční dodávkou paliva"]
[{"$nulls":34},"2 - Kotel na biomasu se samočinnou dodávkou paliva"]
[{"$nulls":34},"3 - Krbová kamna na biomasu s teplovodním výměníkem s ruční dodávkou paliva a uzavřené krbové vložky s teplovodním výměníkem"]
[{"$nulls":34},"4 - Krbová kamna na biomasu s teplovodním výměníkem se samočinnou dodávkou paliva"]
[{"$nulls":34},"5 - Tepelné čerpadlo voda - voda"]
[{"$nulls":34},"6 - Tepelné čerpadlo země - voda"]
[{"$nulls":34},"7 - Tepelné čerpadlo vzduch - voda"]
[{"$nulls":34},"8 - Plynový kondenzační kotel"]
[{"$nulls":34},"9 - Napojení na soustavu zásobování teplem s vyšším než 50% podílem OZE"]
[]
[]
[{"$nulls":34},"1 - Centrální systém nuceného větrání se zpětným získáváním tepla"]
[{"$nulls":34},"2 - Decentrální systém nuceného větrání se zpětným získáváním tepla"]
[]
[]
[{"$nulls":34},"1. Stěna vnější "]
[{"$nulls":34},"2. Střecha strmá se sklonem nad 45° "]
[{"$nulls":34},"3. Střecha plochá a šikmá se sklonem do 45° včetně "]
[{"$nulls":34},"4. Strop s podlahou nad venkovním prostorem "]
[{"$nulls":34},"5. Strop pod nevytápěnou půdou (se střechou bez tepelné izolace) "]
[{"$nulls":34},"6. Stěna k nevytápěné půdě (se střechou bez tepelné izolace) "]
[{"$nulls":34},"7. Podlaha a stěna vytápěného prostoru přilehlá k zemině "]
[{"$nulls":34},"8. Strop a stěna vnitřní z vytápěného k nevytápěnému prostoru "]
[{"$nulls":34},"9. Strop a stěna vnitřní z vytápěného k temperovanému prostoru "]
[{"$nulls":34},"10. Strop a stěna vnější z temperovaného prostoru k venkovnímu prostředí "]
[{"$nulls":34},"11. Podlaha a stěna temperovaného prostoru přilehlá k zemině "]
[{"$nulls":34},"12. Stěna mezi sousedními budovami "]
[{"$nulls":34},"13. Strop mezi prostory s rozdílem teplot do 10 °C včetně "]
[{"$nulls":34},"14. Stěna mezi prostory s rozdílem teplot do 10 °C včetně "]
[{"$nulls":34},"15. Strop vnitřní mezi prostory s rozdílem teplot do 5 °C včetně "]
[{"$nulls":34},"16. Stěna vnitřní mezi prostory s rozdílem teplot do 5 °C včetně "]
[]
[]
[{"$nulls":34},"A.0"]
[{"$nulls":34},"A.1"]
[{"$nulls":34},"A.2"]
[{"$nulls":34},"A.3"]
[]
[]
[{"$nulls":34},"1. Výplň otvoru ve vnější stěně a strmé střeše, z vytápěného prostoru do venkovního prostředí, kromě dveří"]
[{"$nulls":34},"2. Šikmá výplň otvoru se sklonem do 45°, z vytápěného prostoru do venkovního prostředí"]
[{"$nulls":34},"3. Dveřní výplň otvoru z vytápěného prostoru do venkovního prostředí (včetně rámu)"]
[{"$nulls":34},"4. Výplň otvoru vedoucí z vytápěného do temperovaného prostoru "]
[{"$nulls":34},"5. Výplň otvoru vedoucí z temperovaného prostoru do venkovního prostředí "]
[{"$nulls":34},"6. Šikmá výplň otvoru se sklonem do 45° vedoucí z temperovaného prostoru do venkovního prostředí"]
[{"$nulls":34},"7. Lehký obvodový plášť (LOP)"]
[]
[{"$nulls":40},0,0]
[{"$nulls":34},"Ostatní neuvedené energonositele",{"$nulls":5},1.2,1.2]
[{"$nulls":34},"Zemní plyn",{"$nulls":5},1.1,1.1]
[{"$nulls":34},"Černé uhlí",{"$nulls":5},1.1,1.1]
[{"$nulls":34},"Hnědé uhlí",{"$nulls":5},1.1,1.1]
[{"$nulls":34},"Elektřina",{"$nulls":5},3.2,3]
[{"$nulls":34},"Dřevěné pelety",{"$nulls":5},1.2,0.2]
[{"$nulls":34},"Kusové dřevo, dřevní štěpka",{"$nulls":5},1.1,0.1]
[{"$nulls":34},"Energie okolního prostředí (elektřina, teplo)",{"$nulls":5},1,0]
[{"$nulls":34},"Propan-butan/LPG",{"$nulls":5},1.2,1.2]
[{"$nulls":34},"Topný olej",{"$nulls":5},1.2,1.2]
[{"$nulls":34},"Elektřina - dodávka mimo budovu",{"$nulls":5},-3.2,-3]
[{"$nulls":34},"Teplo - dodávka mimo budovu",{"$nulls":5},-1.1,-1]
[{"$nulls":34},"Soustava zásobování tepelnou energií - podíl OZE >80%",{"$nulls":5},1.1,0.1]
[{"$nulls":34},"Soustava zásobování tepelnou energií - podíl OZE > 50 - 80%",{"$nulls":5},1.1,0.3]
[{"$nulls":34},"Soustava zásobování tepelnou energií - podíl OZE ≤ 50%",{"$nulls":5},1.1,1]
[]
[]
[{"$nulls":34},"A"]
[{"$nulls":34},"B"]
[{"$nulls":34},"C"]
[{"$nulls":34},"D"]
[{"$nulls":34},"E"]
[{"$nulls":34},"F"]
[{"$nulls":34},"G"]
[]
[{"$nulls":34},"Vyberte možnost:"]
[{"$nulls":34},"Kotel na tuhá fosilní paliva"]
[{"$nulls":34},"Lokální zdroj(e) na tuhá fosilní paliva"]
[{"$nulls":34},"Elektrické přímotopné vytápění"]
[{"$nulls":34},"Elektrické akumulační vytápění"]
[{"$nulls":34},"Plynový kondenzační kotel"]
[{"$nulls":34},"Plynový atmosférický kotel"]
[{"$nulls":34},"Kotel na biomasu s ručním dodávkou paliva"]
[{"$nulls":34},"Kotel na biomasu se samočinnou dodávkou paliva"]
[{"$nulls":34},"Krb. kamna na biomasu/uzavřené krb. vložky s ruční dodávkou paliva "]
[{"$nulls":34},"Krbová kamna na biomasu se samočinnou dodávkou paliva"]
[{"$nulls":34},"Tepelné čerpadlo voda - voda"]
[{"$nulls":34},"Tepelné čerpadlo země - voda"]
[{"$nulls":34},"Tepelné čerpadlo vzduch - voda"]
[{"$nulls":34},"Tepelné čerpadlo vzduch - vzduch"]
[{"$nulls":34},"Kompaktní jednotka s tepelným čerpadlem"]
[{"$nulls":34},"Kotel na topný olej"]
[{"$nulls":34},"Jiný"]
[]
[]
[{"$nulls":34},1]
[{"$nulls":34},2]
[{"$nulls":34},3]
[{"$nulls":34},4]
[{"$nulls":34},5]
[]
[]
[{"$nulls":34},"Monokrystalické křemíkové články"]
[{"$nulls":34},"Polykrystalické křemíkové články"]
[{"$nulls":34},"Tenkovrstvé články"]
[]
[]
[{"$nulls":34},"FV systém pro přípravu teplé vody s přímým ohřevem"]
[{"$nulls":34},"FV systém připojený do distribuční sítě s akumulací energie:"]
[]
[]
[{"$nulls":34},"volně stojící"]
[{"$nulls":34},"řadová - střední"]
[{"$nulls":34},"řadová - krajní"]

{"sheet":"Příloha č.1 krycího listu","index":1,"n_rows":151,"n_cols":33,"rows_kept":151,"merged":[[0,1,1,32],[2,1,2,24],[2,25,2,32],[6,1,6,15],[6,16,6,32],[11,1,11,13],[11,14,11,32],[12,25,12,32],[13,1,13,24],[13,25,13,28],[14,1,14,24],[14,25,14,28],[15,1,17,1],[15,2,15,11],[15,12,15,24],[15,25,15,28],[15,29,15,32],[16,2,16,24],[16,25,16,28],[17,2,17,24],[17,25,17,28],[18,1,20,1],[18,2,18,11],[18,12,18,24],[18,25,18,28],[18,29,18,32],[19,2,19,24],[19,25,19,28],[20,2,20,24],[20,25,20,28],[21,1,23,1],[21,2,21,11],[21,12,21,24],[21,25,21,28],[21,29,21,32],[22,2,22,24],[22,25,22,28],[23,2,23,24],[23,25,23,28],[25,1,25,15],[25,16,25,32],[30,1,30,13],[30,14,30,32],[31,25,31,32],[32,1,32,24],[32,25,32,28],[33,1,33,24],[33,25,33,28],[34,1,36,1],[34,2,34,11],[34,12,34,24],[34,25,34,28],[34,29,34,32],[35,2,35,24],[35,25,35,28],[36,2,36,24],[36,25,36,28],[37,1,39,1],[37,2,37,11],[37,12,37,24],[37,25,37,28],[37,29,37,32],[38,2,38,24],[38,25,38,28],[39,2,39,24],[39,25,39,28],[40,1,42,1],[40,2,40,11],[40,12,40,24],[40,25,40,28],[40,29,40,32],[41,2,41,24],[41,25,41,28],[42,2,42,24],[42,25,42,28],[45,1,45,15],[45,16,45,32],[50,1,50,13],[50,14,50,32],[51,25,51,32],[52,1,52,24],[52,25,52,28],[53,1,53,24],[53,25,53,28],[54,1,56,1],[54,2,54,11],[54,12,54,24],[54,25,54,28],[54,29,54,32],[55,2,55,24],[55,25,55,28],[56,2,56,24],[56,25,56,28],[57,1,59,1],[57,2,57,11],[57,12,57,24],[57,25,57,28],[57,29,57,32],[58,2,58,24],[58,25,58,28],[59,2,59,24],[59,25,59,28],[60,1,62,1],[60,2,60,11],[60,12,60,24],[60,25,60,28],[60,29,60,32],[61,2,61,24],[61,25,61,28],[62,2,62,24],[62,25,62,28],[64,1,64,15],[64,16,64,32],[69,1,69,13],[69,14,69,32],[70,25,70,32],[71,1,71,24],[71,25,71,28],[72,1,72,24],[72,25,72,28],[73,1,75,1],[73,2,73,11],[73,12,73,24],[73,25,73,28],[73,29,73,32],[74,2,74,24],[74,25,74,28],[75,2,75,24],[75,25,75,28],[76,1,78,1],[76,2,76,11],[76,12,76,24],[76,25,76,28],[76,29,76,32],[77,2,77,24],[77,25,77,28],[78,2,78,24],[78,25,78,28],[79,1,81,1],[79,2,79,11],[79,12,79,24],[79,25,79,28],[79,29,79,32],[80,2,80,24],[80,25,80,28],[81,2,81,24],[81,25,81,28],[86,2,86,8],[86,11,86,17],[88,19,88,32],[89,19,90,32],[91,1,91,32],[136,2,136,16],[136,17,136,33],[137,17,137,33],[138,2,138,14],[138,15,138,33],[139,26,139,33],[140,2,140,25],[140,26,140,29],[141,2,141,25],[141,26,141,29],[142,2,144,2],[142,3,142,12],[142,13,142,25],[142,26,142,29],[142,30,142,33],[143,3,143,25],[143,26,143,29],[144,3,144,25],[144,26,144,29],[145,2,147,2],[145,3,145,12],[145,13,145,25],[145,26,145,29],[145,30,145,33],[146,3,146,25],[146,26,146,29],[147,3,147,25],[147,26,147,29],[148,2,150,2],[148,3,148,12],[148,13,148,25],[148,26,148,29],[148,30,148,33],[149,3,149,25],[149,26,149,29],[150,3,150,25],[150,26,150,29]]}
[null,"Příloha č. 1 - Soupis zateplovaných konstrukcí na obálce budovy\n"]
[]
[1,"ČÍSLO ŽÁDOSTI :",{"$nulls":23},{"$f":"IF(ISNUMBER('Krycí list - oblast podpory A'!Z6:AG6),'Krycí list - oblast podpory A'!Z6:AG6,\"\")","v":""}]
[]
[2,"Část A - Parametry konstrukcí",{"$nulls":21},"ČÍSLO LISTU *",{"$nulls":5},1,"Z",null,2]
[]
[3,"Název/označení konstrukce v odborném posudku :",{"$nulls":14},"STN-8"]
[{"$f":"1+A7","v":4},"Typ konstrukce pro stanovení výše způsobilých výdajů :",{"$nulls":16},"X","Obvodová stěna a podlaha nad exteriérem"]
[5,"(vyberte jeden typ)",{"$nulls":17},"Střecha"]
[6,{"$nulls":18},"Podlaha na terénu"]
[7,{"$nulls":18},"Strop a ostatní konstrukce"]
[8,"Typ konstrukce dle ČSN 73 0540-2:2011, tab.3:",{"$nulls":12},"Stěna vnější"]
[9,"Pro tuto konstrukci je památkovou péčí stanoven zvláštní postup při provádění : ",{"$nulls":23},"Ne"]
[10,"Plocha konstrukce (dle energetického hodnocení):",{"$nulls":23},47,{"$nulls":3},"m2"]
[11,"Součinitel prostupu tepla konstrukce U :",{"$nulls":23},0.208,{"$nulls":3},"W.m-2.K-1"]
[12,"Vrstva 1.","Název výrobku (typové označení) **:",{"$nulls":22},"Kód SVT *:"]
[13,null,"Tloušťka tepelně izolačního materiálu :",{"$nulls":22},150,{"$nulls":3},"mm"]
[14,null,"Deklarovaný součinitel tepelné vodivosti izolačního materiálu λd :",{"$nulls":22},0.032,{"$nulls":3},"W.m-1.K-1"]
[15,"Vrstva 2.","Název výrobku (typové označení) **:",{"$nulls":22},"Kód SVT *:"]
[16,null,"Tloušťka tepelně izolačního materiálu :",{"$nulls":26},"mm"]
[17,null,"Deklarovaný součinitel tepelné vodivosti izolačního materiálu λd :",{"$nulls":26},"W.m-1.K-1"]
[18,"Vrstva 3.","Název výrobku (typové označení) **:",{"$nulls":22},"Kód SVT *:"]
[19,null,"Tloušťka tepelně izolačního materiálu :",{"$nulls":26},"mm"]
[20,null,"Deklarovaný součinitel tepelné vodivosti izolačního materiálu λd :",{"$nulls":26},"W.m-1.K-1"]
[]
[{"$f":"1+A24","v":21},"Název/označení konstrukce v odborném posudku :",{"$nulls":14},"STN-9"]
[{"$f":"1+A26","v":22},"Typ konstrukce pro stanovení výše způsobilých výdajů :",{"$nulls":16},"X","Obvodová stěna a podlaha nad exteriérem"]
[23,"(vyberte jeden typ)",{"$nulls":17},"Střecha"]
[24,{"$nulls":18},"Podlaha na terénu"]
[25,{"$nulls":18},"Strop a ostatní konstrukce"]
[26,"Typ konstrukce dle ČSN 73 0540-2:2011, tab.3:",{"$nulls":12},"Stěna vnější"]
[27,"Pro tuto konstrukci je památkovou péčí stanoven zvláštní postup při provádění : ",{"$nulls":23},"Ne"]
[28,"Plocha konstrukce (dle energetického hodnocení):",{"$nulls":23},10.5,{"$nulls":3},"m2"]
[29,"Součinitel prostupu tepla konstrukce U :",{"$nulls":23},0.215,{"$nulls":3},"W.m-2.K-1"]
[30,"Vrstva 1.","Název výrobku (typové označení) **:",{"$nulls":22},"Kód SVT *:"]
[31,null,"Tloušťka tepelně izolačního materiálu :",{"$nulls":22},150,{"$nulls":3},"mm"]
[32,null,"Deklarovaný součinitel tepelné vodivosti izolačního materiálu λd :",{"$nulls":22},0.032,{"$nulls":3},"W.m-1.K-1"]
[33,"Vrstva 2.","Název výrobku (typové označení) **:",{"$nulls":22},"Kód SVT *:"]
[34,null,"Tloušťka tepelně izolačního materiálu :",{"$nulls":26},"mm"]
[35,null,"Deklarovaný součinitel tepelné vodivosti izolačního materiálu λd :",{"$nulls":26},"W.m-1.K-1"]
[36,"Vrstva 3.","Název výrobku (typové označení) **:",{"$nulls":22},"Kód SVT *:"]
[37,null,"Tloušťka tepelně izolačního materiálu :",{"$nulls":26},"mm"]
[38,null,"Deklarovaný součinitel tepelné vodivosti izolačního materiálu λd :",{"$nulls":26},"W.m-1.K-1"]
[]
[]
[39,"Název/označení konstrukce v odborném posudku :",{"$nulls":14},"STN-10"]
[{"$f":"A46+1","v":40},"Typ konstrukce pro stanovení výše způsobilých výdajů :",{"$nulls":16},"X","Obvodová stěna a podlaha nad exteriérem"]
[41,"(vyberte jeden typ)",{"$nulls":17},"Střecha"]
[42,{"$nulls":18},"Podlaha na terénu"]
[43,{"$nulls":18},"Strop a ostatní konstrukce"]
[44,"Typ konstrukce dle ČSN 73 0540-2:2011, tab.3:",{"$nulls":12},"Stěna vnější"]
[45,"Pro tuto konstrukci je památkovou péčí stanoven zvláštní postup při provádění : ",{"$nulls":23},"Ne"]
[46,"Plocha konstrukce (dle energetického hodnocení):",{"$nulls":23},10.2,{"$nulls":3},"m2"]
[47,"Součinitel prostupu tepla konstrukce U :",{"$nulls":23},0.178,{"$nulls":3},"W.m-2.K-1"]
[48,"Vrstva 1.","Název výrobku (typové označení) **:",{"$nulls":22},"Kód SVT *:"]
[49,null,"Tloušťka tepelně izolačního materiálu :",{"$nulls":22},40,{"$nulls":3},"mm"]
[50,null,"Deklarovaný součinitel tepelné vodivosti izolačního materiálu λd :",{"$nulls":22},0.037,{"$nulls":3},"W.m-1.K-1"]
[51,"Vrstva 2.","Název výrobku (typové označení) **:",{"$nulls":22},"Kód SVT *:"]
[52,null,"Tloušťka tepelně izolačního materiálu :",{"$nulls":22},60,{"$nulls":3},"mm"]
[53,null,"Deklarovaný součinitel tepelné vodivosti izolačního materiálu λd :",{"$nulls":22},0.032,{"$nulls":3},"W.m-1.K-1"]
[54,"Vrstva 3.","Název výrobku (typové označení) **:",{"$nulls":22},"Kód SVT *:"]
[55,null,"Tloušťka tepelně izolačního materiálu :",{"$nulls":26},"mm"]
[56,null,"Deklarovaný součinitel tepelné vodivosti izolačního materiálu λd :",{"$nulls":26},"W.m-1.K-1"]
[]
[57,"Název/označení konstrukce v odborném posudku :",{"$nulls":14},"PDL(z)-12"]
[{"$f":"1+A65","v":58},"Typ konstrukce pro stanovení výše způsobilých výdajů :",{"$nulls":17},"Obvodová stěna a podlaha nad exteriérem"]
[59,"(vyberte jeden typ)",{"$nulls":17},"Střecha"]
[60,{"$nulls":17},"X","Podlaha na terénu"]
[61,{"$nulls":18},"Strop a ostatní konstrukce"]
[62,"Typ konstrukce dle ČSN 73 0540-2:2011, tab.3:",{"$nulls":12},"Podlaha a stěna vytápěného prostoru přilehlá k zemině"]
[63,"Pro tuto konstrukci je památkovou péčí stanoven zvláštní postup při provádění : ",{"$nulls":23},"Ne"]
[64,"Plocha konstrukce (dle energetického hodnocení):",{"$nulls":23},86.4,{"$nulls":3},"m2"]
[65,"Součinitel prostupu tepla konstrukce U :",{"$nulls":23},0.229,{"$nulls":3},"W.m-2.K-1"]
[66,"Vrstva 1.","Název výrobku (typové označení) **:",{"$nulls":22},"Kód SVT *:"]
[67,null,"Tloušťka tepelně izolačního materiálu :",{"$nulls":22},120,{"$nulls":3},"mm"]
[68,null,"Deklarovaný součinitel tepelné vodivosti izolačního materiálu λd :",{"$nulls":22},0.032,{"$nulls":3},"W.m-1.K-1"]
[69,"Vrstva 2.","Název výrobku (typové označení) **:",{"$nulls":22},"Kód SVT *:"]
[70,null,"Tloušťka tepelně izolačního materiálu :",{"$nulls":22},20,{"$nulls":3},"mm"]
[71,null,"Deklarovaný součinitel tepelné vodivosti izolačního materiálu λd :",{"$nulls":22},0.039,{"$nulls":3},"W.m-1.K-1"]
[72,"Vrstva 3.","Název výrobku (typové označení) **:",{"$nulls":22},"Kód SVT *:"]
[73,null,"Tloušťka tepelně izolačního materiálu :",{"$nulls":26},"mm"]
[74,null,"Deklarovaný součinitel tepelné vodivosti izolačního materiálu λd :",{"$nulls":26},"W.m-1.K-1"]
[]
[]
[null,"Část B - Podpis energetického specialisty"]
[]
[75,"V",{"$nulls":7},"dne",null,"1.7.2016"]
[]
[{"$nulls":19},"Ing. Jan Zelený CSc"]
[{"$nulls":19},"jméno, příjmení (hůlkovým písmem), podpis energetického specialisty"]
[]
[]
[]
[null,"Stěna vnější "]
[null,"Střecha strmá se sklonem nad 45° "]
[null,"Střecha plochá a šikmá se sklonem do 45° včetně "]
[null,"Strop s podlahou nad venkovním prostorem "]
[null,"Strop pod nevytápěnou půdou (se střechou bez tepelné izolace) "]
[null,"Stěna k nevytápěné půdě (se střechou bez tepelné izolace) "]
[null,"Podlaha a stěna vytápěného prostoru přilehlá k zemině "]
[null,"Strop a stěna vnitřní z vytápěného k nevytápěnému prostoru "]
[null,"Strop a stěna vnitřní z vytápěného k temperovanému prostoru "]
[null,"Strop a stěna vnější z temperovaného prostoru k venkovnímu prostředí "]
[null,"Podlaha a stěna temperovaného prostoru přilehlá k zemině "]
[null,"Stěna mezi sousedními budovami "]
[null,"Strop mezi prostory s rozdílem teplot do 10 °C včetně "]
[null,"Stěna mezi prostory s rozdílem teplot do 10 °C včetně "]
[null,"Strop vnitřní mezi prostory s rozdílem teplot do 5 °C včetně "]
[null,"Stěna vnitřní mezi prostory s rozdílem teplot do 5 °C včetně "]
[]
[]
[null,"Ano"]
[null,"Ne"]
[]
[]
[null,"1. Výplň otvoru ve vnější stěně a strmé střeše, z vytápěného prostoru do venkovního prostředí, kromě dveří"]
[null,"2. Šikmá výplň otvoru se sklonem do 45°, z vytápěného prostoru do venkovního prostředí"]
[null,"3. Dveřní výplň otvoru z vytápěného prostoru do venkovního prostředí (včetně rámu)"]
[null,"4. Výplň otvoru vedoucí z vytápěného do temperovaného prostoru "]
[null,"5. Výplň otvoru vedoucí z temperovaného prostoru do venkovního prostředí "]
[null,"6. Šikmá výplň otvoru se sklonem do 45° vedoucí z temperovaného prostoru do venkovního prostředí"]
[null,"7. Lehký obvodový plášť (LOP)"]
[]
[]
[null,"Obvodová stěna"]
[null,"Střecha"]
[null,"Podlaha na terénu"]
[null,"Ostatní konstrukce a strop"]
{"$rows_empty":8}
[null,57,"Název/označení konstrukce v odborném posudku :"]
[null,{"$f":"1+B137","v":58},"Typ konstrukce pro stanovení výše způsobilých výdajů :",{"$nulls":14},"Obvodová stěna"]
[null,{"$f":"1+#REF!","v":{"$error":"#REF!"}},"Typ konstrukce dle ČSN 73 0540-2:2011, tab.3:"]
[null,{"$f":"1+B139","v":{"$error":"#REF!"}},"Pro tuto konstrukci je památkovou péčí stanoven zvláštní postup při provádění : ",{"$nulls":23},"Ne"]
[null,{"$error":"#REF!"},"Plocha konstrukce (dle energetického hodnocení):",{"$nulls":27},"m2"]
[null,{"$error":"#REF!"},"Součinitel prostupu tepla konstrukce U :",{"$nulls":27},"W.m-2.K-1"]
[null,{"$error":"#REF!"},"Vrstva 1.","Název výrobku (typové označení) **:",{"$nulls":22},"Kód SVT *:"]
[null,{"$error":"#REF!"},null,"Tloušťka tepelně izolačního materiálu :",{"$nulls":26},"mm"]
[null,{"$error":"#REF!"},null,"Deklarovaný součinitel tepelné vodivosti izolačního materiálu λd :",{"$nulls":26},"W.m-1.K-1"]
[null,{"$error":"#REF!"},"Vrstva 2.","Název výrobku (typové označení) **:",{"$nulls":22},"Kód SVT *:"]
[null,{"$error":"#REF!"},null,"Tloušťka tepelně izolačního materiálu :",{"$nulls":26},"mm"]
[null,{"$error":"#REF!"},null,"Deklarovaný součinitel tepelné vodivosti izolačního materiálu λd :",{"$nulls":26},"W.m-1.K-1"]
[null,{"$error":"#REF!"},"Vrstva 3.","Název výrobku (typové označení) **:",{"$nulls":22},"Kód SVT *:"]
[null,{"$error":"#REF!"},null,"Tloušťka tepelně izolačního materiálu :",{"$nulls":26},"mm"]
[null,{"$error":"#REF!"},null,"Deklarovaný součinitel tepelné vodivosti izolačního materiálu λd :",{"$nulls":26},"W.m-1.K-1"]

{"sheet":"Příloha č.1 krycího listu (2)","index":2,"n_rows":151,"n_cols":33,"rows_kept":151,"merged":[[0,1,1,32],[2,1,2,24],[2,25,2,32],[6,1,6,15],[6,16,6,32],[11,1,11,13],[11,14,11,32],[12,25,12,32],[13,1,13,24],[13,25,13,28],[14,1,14,24],[14,25,14,28],[15,1,17,1],[15,2,15,11],[15,12,15,24],[15,25,15,28],[15,29,15,32],[16,2,16,24],[16,25,16,28],[17,2,17,24],[17,25,17,28],[18,1,20,1],[18,2,18,11],[18,12,18,24],[18,25,18,28],[18,29,18,32],[19,2,19,24],[19,25,19,28],[20,2,20,24],[20,25,20,28],[21,1,23,1],[21,2,21,11],[21,12,21,24],[21,25,21,28],[21,29,21,32],[22,2,22,24],[22,25,22,28],[23,2,23,24],[23,25,23,28],[25,1,25,15],[25,16,25,32],[30,1,30,13],[30,14,30,32],[31,25,31,32],[32,1,32,24],[32,25,32,28],[33,1,33,24],[33,25,33,28],[34,1,36,1],[34,2,34,11],[34,12,34,24],[34,25,34,28],[34,29,34,32],[35,2,35,24],[35,25,35,28],[36,2,36,24],[36,25,36,28],[37,1,39,1],[37,2,37,11],[37,12,37,24],[37,25,37,28],[37,29,37,32],[38,2,38,24],[38,25,38,28],[39,2,39,24],[39,25,39,28],[40,1,42,1],[40,2,40,11],[40,12,40,24],[40,25,40,28],[40,29,40,32],[41,2,41,24],[41,25,41,28],[42,2,42,24],[42,25,42,28],[45,1,45,15],[45,16,45,32],[50,1,50,13],[50,14,50,32],[51,25,51,32],[52,1,52,24],[52,25,52,28],[53,1,53,24],[53,25,53,28],[54,1,56,1],[54,2,54,11],[54,12,54,24],[54,25,54,28],[54,29,54,32],[55,2,55,24],[55,25,55,28],[56,2,56,24],[56,25,56,28],[57,1,59,1],[57,2,57,11],[57,12,57,24],[57,25,57,28],[57,29,57,32],[58,2,58,24],[58,25,58,28],[59,2,59,24],[59,25,59,28],[60,1,62,1],[60,2,60,11],[60,12,60,24],[60,25,60,28],[60,29,60,32],[61,2,61,24],[61,25,61,28],[62,2,62,24],[62,25,62,28],[64,1,64,15],[64,16,64,32],[69,1,69,13],[69,14,69,32],[70,25,70,32],[71,1,71,24],[71,25,71,28],[72,1,72,24],[72,25,72,28],[73,1,75,1],[73,2,73,11],[73,12,73,24],[73,25,73,28],[73,29,73,32],[74,2,74,24],[74,25,74,28],[75,2,75,24],[75,25,75,28],[76,1,78,1],[76,2,76,11],[76,12,76,24],[76,25,76,28],[76,29,76,32],[77,2,77,24],[77,25,77,28],[78,2,78,24],[78,25,78,28],[79,1,81,1],[79,2,79,11],[79,12,79,24],[79,25,79,28],[79,29,79,32],[80,2,80,24],[80,25,80,28],[81,2,81,24],[81,25,81,28],[86,2,86,8],[86,11,86,17],[88,19,88,32],[89,19,90,32],[91,1,91,32],[136,2,136,16],[136,17,136,33],[137,17,137,33],[138,2,138,14],[138,15,138,33],[139,26,139,33],[140,2,140,25],[140,26,140,29],[141,2,141,25],[141,26,141,29],[142,2,144,2],[142,3,142,12],[142,13,142,25],[142,26,142,29],[142,30,142,33],[143,3,143,25],[143,26,143,29],[144,3,144,25],[144,26,144,29],[145,2,147,2],[145,3,145,12],[145,13,145,25],[145,26,145,29],[145,30,145,33],[146,3,146,25],[146,26,146,29],[147,3,147,25],[147,26,147,29],[148,2,150,2],[148,3,148,12],[148,13,148,25],[148,26,148,29],[148,30,148,33],[149,3,149,25],[149,26,149,29],[150,3,150,25],[150,26,150,29]]}
[null,"Příloha č. 1 - Soupis zateplovaných konstrukcí na obálce budovy\n"]
[]
[1,"ČÍSLO ŽÁDOSTI :",{"$nulls":23},{"$f":"IF(ISNUMBER('Krycí list - oblast podpory A'!Z6:AG6),'Krycí list - oblast podpory A'!Z6:AG6,\"\")","v":""}]
[]
[2,"Část A - Parametry konstrukcí",{"$nulls":21},"ČÍSLO LISTU *",{"$nulls":5},2,"Z",null,2]
[]
[3,"Název/označení konstrukce v odborném posudku :",{"$nulls":14},"STR-14"]
[{"$f":"1+A7","v":4},"Typ konstrukce pro stanovení výše způsobilých výdajů :",{"$nulls":17},"Obvodová stěna a podlaha nad exteriérem"]
[5,"(vyberte jeden typ)",{"$nulls":16},"X","Střecha"]
[6,{"$nulls":18},"Podlaha na terénu"]
[7,{"$nulls":18},"Strop a ostatní konstrukce"]
[8,"Typ konstrukce dle ČSN 73 0540-2:2011, tab.3:",{"$nulls":12},"Střecha plochá a šikmá se sklonem do 45° včetně"]
[9,"Pro tuto konstrukci je památkovou péčí stanoven zvláštní postup při provádění : ",{"$nulls":23},"Ne"]
[10,"Plocha konstrukce (dle energetického hodnocení):",{"$nulls":23},46.7,{"$nulls":3},"m2"]
[11,"Součinitel prostupu tepla konstrukce U :",{"$nulls":23},0.14,{"$nulls":3},"W.m-2.K-1"]
[12,"Vrstva 1.","Název výrobku (typové označení) **:",{"$nulls":22},"Kód SVT *:"]
[13,null,"Tloušťka tepelně izolačního materiálu :",{"$nulls":22},40,{"$nulls":3},"mm"]
[14,null,"Deklarovaný součinitel tepelné vodivosti izolačního materiálu λd :",{"$nulls":22},0.037,{"$nulls":3},"W.m-1.K-1"]
[15,"Vrstva 2.","Název výrobku (typové označení) **:",{"$nulls":22},"Kód SVT *:"]
[16,null,"Tloušťka tepelně izolačního materiálu :",{"$nulls":22},140,{"$nulls":3},"mm"]
[17,null,"Deklarovaný součinitel tepelné vodivosti izolačního materiálu λd :",{"$nulls":22},0.035,{"$nulls":3},"W.m-1.K-1"]
[18,"Vrstva 3.","Název výrobku (typové označení) **:",{"$nulls":22},"Kód SVT *:"]
[19,null,"Tloušťka tepelně izolačního materiálu :",{"$nulls":22},140,{"$nulls":3},"mm"]
[20,null,"Deklarovaný součinitel tepelné vodivosti izolačního materiálu λd :",{"$nulls":22},0.035,{"$nulls":3},"W.m-1.K-1"]
[]
[{"$f":"1+A24","v":21},"Název/označení konstrukce v odborném posudku :",{"$nulls":14},"STR-15"]
[{"$f":"1+A26","v":22},"Typ konstrukce pro stanovení výše způsobilých výdajů :",{"$nulls":17},"Obvodová stěna a podlaha nad exteriérem"]
[23,"(vyberte jeden typ)",{"$nulls":17},"Střecha"]
[24,{"$nulls":18},"Podlaha na terénu"]
[25,{"$nulls":17},"X","Strop a ostatní konstrukce"]
[26,"Typ konstrukce dle ČSN 73 0540-2:2011, tab.3:",{"$nulls":12},"Střecha plochá a šikmá se sklonem do 45° včetně"]
[27,"Pro tuto konstrukci je památkovou péčí stanoven zvláštní postup při provádění : ",{"$nulls":23},"Ne"]
[28,"Plocha konstrukce (dle energetického hodnocení):",{"$nulls":23},51.1,{"$nulls":3},"m2"]
[29,"Součinitel prostupu tepla konstrukce U :",{"$nulls":23},0.14,{"$nulls":3},"W.m-2.K-1"]
[30,"Vrstva 1.","Název výrobku (typové označení) **:",{"$nulls":22},"Kód SVT *:"]
[31,null,"Tloušťka tepelně izolačního materiálu :",{"$nulls":22},40,{"$nulls":3},"mm"]
[32,null,"Deklarovaný součinitel tepelné vodivosti izolačního materiálu λd :",{"$nulls":22},0.037,{"$nulls":3},"W.m-1.K-1"]
[33,"Vrstva 2.","Název výrobku (typové označení) **:",{"$nulls":22},"Kód SVT *:"]
[34,null,"Tloušťka tepelně izolačního materiálu :",{"$nulls":22},140,{"$nulls":3},"mm"]
[35,null,"Deklarovaný součinitel tepelné vodivosti izolačního materiálu λd :",{"$nulls":22},0.035,{"$nulls":3},"W.m-1.K-1"]
[36,"Vrstva 3.","Název výrobku (typové označení) **:",{"$nulls":22},"Kód SVT *:"]
[37,null,"Tloušťka tepelně izolačního materiálu :",{"$nulls":22},140,{"$nulls":3},"mm"]
[38,null,"Deklarovaný součinitel tepelné vodivosti izolačního materiálu λd :",{"$nulls":22},0.035,{"$nulls":3},"W.m-1.K-1"]
[]
[]
[39,"Název/označení konstrukce v odborném posudku :",{"$nulls":14},"STR-16"]
[{"$f":"A46+1","v":40},"Typ konstrukce pro stanovení výše způsobilých výdajů :",{"$nulls":17},"Obvodová stěna a podlaha nad exteriérem"]
[41,"(vyberte jeden typ)",{"$nulls":16},"X","Střecha"]
[42,{"$nulls":18},"Podlaha na terénu"]
[43,{"$nulls":18},"Strop a ostatní konstrukce"]
[44,"Typ konstrukce dle ČSN 73 0540-2:2011, tab.3:",{"$nulls":12},"Střecha plochá a šikmá se sklonem do 45° včetně"]
[45,"Pro tuto konstrukci je památkovou péčí stanoven zvláštní postup při provádění : ",{"$nulls":23},"Ne"]
[46,"Plocha konstrukce (dle energetického hodnocení):",{"$nulls":23},8.7,{"$nulls":3},"m2"]
[47,"Součinitel prostupu tepla konstrukce U :",{"$nulls":23},0.14,{"$nulls":3},"W.m-2.K-1"]
[48,"Vrstva 1.","Název výrobku (typové označení) **:",{"$nulls":22},"Kód SVT *:"]
[49,null,"Tloušťka tepelně izolačního materiálu :",{"$nulls":22},40,{"$nulls":3},"mm"]
[50,null,"Deklarovaný součinitel tepelné vodivosti izolačního materiálu λd :",{"$nulls":22},0.037,{"$nulls":3},"W.m-1.K-1"]
[51,"Vrstva 2.","Název výrobku (typové označení) **:",{"$nulls":22},"Kód SVT *:"]
[52,null,"Tloušťka tepelně izolačního materiálu :",{"$nulls":22},140,{"$nulls":3},"mm"]
[53,null,"Deklarovaný součinitel tepelné vodivosti izolačního materiálu λd :",{"$nulls":22},0.035,{"$nulls":3},"W.m-1.K-1"]
[54,"Vrstva 3.","Název výrobku (typové označení) **:",{"$nulls":22},"Kód SVT *:"]
[55,null,"Tloušťka tepelně izolačního materiálu :",{"$nulls":22},140,{"$nulls":3},"mm"]
[56,null,"Deklarovaný součinitel tepelné vodivosti izolačního materiálu λd :",{"$nulls":22},0.035,{"$nulls":3},"W.m-1.K-1"]
[]
[57,"Název/označení konstrukce v odborném posudku :",{"$nulls":14},"STN-11"]
[{"$f":"1+A65","v":58},"Typ konstrukce pro stanovení výše způsobilých výdajů :",{"$nulls":17},"Obvodová stěna a podlaha nad exteriérem"]
[59,"(vyberte jeden typ)",{"$nulls":17},"Střecha"]
[60,{"$nulls":18},"Podlaha na terénu"]
[61,{"$nulls":17},"X","Strop a ostatní konstrukce"]
[62,"Typ konstrukce dle ČSN 73 0540-2:2011, tab.3:",{"$nulls":12},"Strop a stěna vnitřní z vytápěného k nevytápěnému prostoru"]
[63,"Pro tuto konstrukci je památkovou péčí stanoven zvláštní postup při provádění : ",{"$nulls":23},"Ne"]
[64,"Plocha konstrukce (dle energetického hodnocení):",{"$nulls":23},8.2,{"$nulls":3},"m2"]
[65,"Součinitel prostupu tepla konstrukce U :",{"$nulls":23},0.205,{"$nulls":3},"W.m-2.K-1"]
[66,"Vrstva 1.","Název výrobku (typové označení) **:",{"$nulls":22},"Kód SVT *:"]
[67,null,"Tloušťka tepelně izolačního materiálu :",{"$nulls":22},150,{"$nulls":3},"mm"]
[68,null,"Deklarovaný součinitel tepelné vodivosti izolačního materiálu λd :",{"$nulls":22},0.032,{"$nulls":3},"W.m-1.K-1"]
[69,"Vrstva 2.","Název výrobku (typové označení) **:",{"$nulls":22},"Kód SVT *:"]
[70,null,"Tloušťka tepelně izolačního materiálu :",{"$nulls":26},"mm"]
[71,null,"Deklarovaný součinitel tepelné vodivosti izolačního materiálu λd :",{"$nulls":26},"W.m-1.K-1"]
[72,"Vrstva 3.","Název výrobku (typové označení) **:",{"$nulls":22},"Kód SVT *:"]
[73,null,"Tloušťka tepelně izolačního materiálu :",{"$nulls":26},"mm"]
[74,null,"Deklarovaný součinitel tepelné vodivosti izolačního materiálu λd :",{"$nulls":26},"W.m-1.K-1"]
[]
[]
[null,"Část B - Podpis energetického specialisty"]
[]
[75,"V",{"$nulls":7},"dne",null,"1.7.2016"]
[]
[{"$nulls":19},"Ing. Jan Zelený CSc"]
[{"$nulls":19},"jméno, příjmení (hůlkovým písmem), podpis energetického specialisty"]
[]
[]
[]
[null,"Stěna vnější "]
[null,"Střecha strmá se sklonem nad 45° "]
[null,"Střecha plochá a šikmá se sklonem do 45° včetně "]
[null,"Strop s podlahou nad venkovním prostorem "]
[null,"Strop pod nevytápěnou půdou (se střechou bez tepelné izolace) "]
[null,"Stěna k nevytápěné půdě (se střechou bez tepelné izolace) "]
[null,"Podlaha a stěna vytápěného prostoru přilehlá k zemině "]
[null,"Strop a stěna vnitřní z vytápěného k nevytápěnému prostoru "]
[null,"Strop a stěna vnitřní z vytápěného k temperovanému prostoru "]
[null,"Strop a stěna vnější z temperovaného prostoru k venkovnímu prostředí "]
[null,"Podlaha a stěna temperovaného prostoru přilehlá k zemině "]
[null,"Stěna mezi sousedními budovami "]
[null,"Strop mezi prostory s rozdílem teplot do 10 °C včetně "]
[null,"Stěna mezi prostory s rozdílem teplot do 10 °C včetně "]
[null,"Strop vnitřní mezi prostory s rozdílem teplot do 5 °C včetně "]
[null,"Stěna vnitřní mezi prostory s rozdílem teplot do 5 °C včetně "]
[]
[]
[null,"Ano"]
[null,"Ne"]
[]
[]
[null,"1. Výplň otvoru ve vnější stěně a strmé střeše, z vytápěného prostoru do venkovního prostředí, kromě dveří"]
[null,"2. Šikmá výplň otvoru se sklonem do 45°, z vytápěného prostoru do venkovního prostředí"]
[null,"3. Dveřní výplň otvoru z vytápěného prostoru do venkovního prostředí (včetně rámu)"]
[null,"4. Výplň otvoru vedoucí z vytápěného do temperovaného prostoru "]
[null,"5. Výplň otvoru vedoucí z temperovaného prostoru do venkovního prostředí "]
[null,"6. Šikmá výplň otvoru se sklonem do 45° vedoucí z temperovaného prostoru do venkovního prostředí"]
[null,"7. Lehký obvodový plášť (LOP)"]
[]
[]
[null,"Obvodová stěna"]
[null,"Střecha"]
[null,"Podlaha na terénu"]
[null,"Ostatní konstrukce a strop"]
{"$rows_empty":8}
[null,57,"Název/označení konstrukce v odborném posudku :"]
[null,{"$f":"1+B137","v":58},"Typ konstrukce pro stanovení výše způsobilých výdajů :",{"$nulls":14},"Obvodová stěna"]
[null,{"$f":"1+#REF!","v":{"$error":"#REF!"}},"Typ konstrukce dle ČSN 73 0540-2:2011, tab.3:"]
[null,{"$f":"1+B139","v":{"$error":"#REF!"}},"Pro tuto konstrukci je památkovou péčí stanoven zvláštní postup při provádění : ",{"$nulls":23},"Ne"]
[null,{"$error":"#REF!"},"Plocha konstrukce (dle energetického hodnocení):",{"$nulls":27},"m2"]
[null,{"$error":"#REF!"},"Součinitel prostupu tepla konstrukce U :",{"$nulls":27},"W.m-2.K-1"]
[null,{"$error":"#REF!"},"Vrstva 1.","Název výrobku (typové označení) **:",{"$nulls":22},"Kód SVT *:"]
[null,{"$error":"#REF!"},null,"Tloušťka tepelně izolačního materiálu :",{"$nulls":26},"mm"]
[null,{"$error":"#REF!"},null,"Deklarovaný součinitel tepelné vodivosti izolačního materiálu λd :",{"$nulls":26},"W.m-1.K-1"]
[null,{"$error":"#REF!"},"Vrstva 2.","Název výrobku (typové označení) **:",{"$nulls":22},"Kód SVT *:"]
[null,{"$error":"#REF!"},null,"Tloušťka tepelně izolačního materiálu :",{"$nulls":26},"mm"]
[null,{"$error":"#REF!"},null,"Deklarovaný součinitel tepelné vodivosti izolačního materiálu λd :",{"$nulls":26},"W.m-1.K-1"]
[null,{"$error":"#REF!"},"Vrstva 3.","Název výrobku (typové označení) **:",{"$nulls":22},"Kód SVT *:"]
[null,{"$error":"#REF!"},null,"Tloušťka tepelně izolačního materiálu :",{"$nulls":26},"mm"]
[null,{"$error":"#REF!"},null,"Deklarovaný součinitel tepelné vodivosti izolačního materiálu λd :",{"$nulls":26},"W.m-1.K-1"]

{"sheet":"Příloha č. 2 krycího listu","index":3,"n_rows":120,"n_cols":33,"rows_kept":120,"merged":[[0,1,1,32],[2,1,2,24],[2,25,2,32],[6,1,7,32],[9,1,9,16],[9,17,9,32],[10,14,10,32],[11,25,11,32],[12,1,12,24],[12,25,12,28],[13,25,13,28],[14,25,14,28],[15,25,15,28],[16,25,16,28],[17,25,17,28],[18,25,18,28],[19,11,19,24],[19,25,19,28],[19,29,19,32],[21,1,21,16],[21,17,21,32],[22,14,22,32],[23,25,23,32],[24,1,24,24],[24,25,24,28],[25,25,25,28],[26,25,26,28],[27,25,27,28],[28,25,28,28],[29,25,29,28],[30,25,30,28],[31,11,31,24],[31,25,31,28],[31,29,31,32],[33,1,33,16],[33,17,33,32],[34,14,34,32],[35,25,35,32],[36,1,36,24],[36,25,36,28],[37,25,37,28],[38,25,38,28],[39,25,39,28],[40,25,40,28],[41,25,41,28],[42,25,42,28],[43,11,43,24],[43,25,43,28],[43,29,43,32],[45,1,45,16],[45,17,45,32],[46,14,46,32],[47,25,47,32],[48,1,48,24],[48,25,48,28],[49,25,49,28],[50,25,50,28],[51,25,51,28],[52,25,52,28],[53,25,53,28],[54,25,54,28],[55,11,55,24],[55,25,55,28],[55,29,55,32],[57,1,57,16],[57,17,57,32],[58,14,58,32],[59,25,59,32],[60,1,60,24],[60,25,60,28],[61,25,61,28],[62,25,62,28],[63,25,63,28],[64,25,64,28],[65,25,65,28],[66,25,66,28],[67,11,67,24],[67,25,67,28],[67,29,67,32],[69,1,69,16],[69,17,69,32],[70,14,70,32],[71,25,71,32],[72,1,72,24],[72,25,72,28],[73,25,73,28],[74,25,74,28],[75,25,75,28],[76,25,76,28],[77,25,77,28],[78,25,78,28],[79,11,79,24],[79,25,79,28],[79,29,79,32],[83,2,83,8],[83,11,83,17],[85,19,85,32],[86,19,87,32],[88,1,88,32]]}
[null,"Příloha č. 2 - Soupis měněných výplní otvorů na obálce budovy                               \n\n"]
[]
[1,"ČÍSLO ŽÁDOSTI :",{"$nulls":23},{"$f":"IF(ISNUMBER('Krycí list - oblast podpory A'!Z6:AG6),'Krycí list - oblast podpory A'!Z6:AG6,\"\")","v":""}]
[]
[2,"Část A - Parametry konstrukcí",{"$nulls":21},"ČÍSLO LISTU *",{"$nulls":5},1,"Z",null,2]
[]
[null,"Poznámka: Zapisují se pouze podporované výplně otvorů s různými parametry. Například, v případě, že mají všechny podporované výplně otvorů shodné parametry, bude zapsán pouze jeden výrobek."]
[]
[]
[3,"Název/označení konstrukce v odborném posudku :",{"$nulls":15},"VYP-1"]
[{"$f":"1+A10","v":4},"Typ konstrukce dle ČSN 73 0540-2:2011, tab. 3 :",{"$nulls":12},"1. Výplň otvoru ve vnější stěně a strmé střeše, z vytápěného prostoru do venkovního prostředí, kromě dveří"]
[5,"Pro tuto konstrukci je památkovou péčí stanoven zvláštní postup při provádění : ",{"$nulls":23},"Ne"]
[6,"Plocha konstrukce (dle energetického hodnocení) :",{"$nulls":23},4.4,{"$nulls":3},"m2"]
[7,"Součinitel prostupu tepla výplně otvoru stanovený pro dané rozměry Uw/UD :",{"$nulls":23},0.9,{"$nulls":3},"W.m-2.K-1"]
[8,"Součinitel prostupu tepla výplně Ug **:",{"$nulls":27},"W.m-2.K-1"]
[9,"Součinitel prostupu tepla rámu Uf **:",{"$nulls":27},"W.m-2.K-1"]
[10,"Lineární činitel prostupu tepla ψg **:",{"$nulls":27},"W.m-1.K-1"]
[11,"Výška profilu rámu **:",{"$nulls":27},"mm"]
[12,"Celkový činitel prostupu solární energie g :",{"$nulls":23},{"v":0.5,"d":"0.50"},{"$nulls":3},"-"]
[13,"Název výrobku (typové označení) **:",{"$nulls":23},"Kód SVT *:"]
[]
[14,"Název/označení konstrukce v odborném posudku :",{"$nulls":15},"VYP-2"]
[{"$f":"1+A22","v":15},"Typ konstrukce dle ČSN 73 0540-2:2011, tab. 3 :",{"$nulls":12},"1. Výplň otvoru ve vnější stěně a strmé střeše, z vytápěného prostoru do venkovního prostředí, kromě dveří"]
[16,"Pro tuto konstrukci je památkovou péčí stanoven zvláštní postup při provádění : ",{"$nulls":23},"Ne"]
[17,"Plocha konstrukce (dle energetického hodnocení) :",{"$nulls":23},3.9,{"$nulls":3},"m2"]
[18,"Součinitel prostupu tepla výplně otvoru stanovený pro dané rozměry Uw/UD :",{"$nulls":23},0.9,{"$nulls":3},"W.m-2.K-1"]
[19,"Součinitel prostupu tepla výplně Ug **:",{"$nulls":27},"W.m-2.K-1"]
[20,"Součinitel prostupu tepla rámu Uf **:",{"$nulls":27},"W.m-2.K-1"]
[21,"Lineární činitel prostupu tepla ψg **:",{"$nulls":27},"W.m-1.K-1"]
[22,"Výška profilu rámu **:",{"$nulls":27},"mm"]
[23,"Celkový činitel prostupu solární energie g :",{"$nulls":23},{"v":0.5,"d":"0.50"},{"$nulls":3},"-"]
[24,"Název výrobku (typové označení) **:",{"$nulls":23},"Kód SVT *:"]
[]
[25,"Název/označení konstrukce v odborném posudku :",{"$nulls":15},"VYP-3"]
[{"$f":"1+A34","v":26},"Typ konstrukce dle ČSN 73 0540-2:2011, tab. 3 :",{"$nulls":12},"1. Výplň otvoru ve vnější stěně a strmé střeše, z vytápěného prostoru do venkovního prostředí, kromě dveří"]
[27,"Pro tuto konstrukci je památkovou péčí stanoven zvláštní postup při provádění : ",{"$nulls":23},"Ne"]
[28,"Plocha konstrukce (dle energetického hodnocení) :",{"$nulls":23},5.8,{"$nulls":3},"m2"]
[29,"Součinitel prostupu tepla výplně otvoru stanovený pro dané rozměry Uw/UD :",{"$nulls":23},0.9,{"$nulls":3},"W.m-2.K-1"]
[30,"Součinitel prostupu tepla výplně Ug **:",{"$nulls":27},"W.m-2.K-1"]
[31,"Součinitel prostupu tepla rámu Uf **:",{"$nulls":27},"W.m-2.K-1"]
[32,"Lineární činitel prostupu tepla ψg **:",{"$nulls":27},"W.m-1.K-1"]
[33,"Výška profilu rámu **:",{"$nulls":27},"mm"]
[34,"Celkový činitel prostupu solární energie g :",{"$nulls":23},{"v":0.5,"d":"0.50"},{"$nulls":3},"-"]
[35,"Název výrobku (typové označení) **:",{"$nulls":23},"Kód SVT *:"]
[]
[36,"Název/označení konstrukce v odborném posudku :",{"$nulls":15},"VYP-4"]
[{"$f":"1+A46","v":37},"Typ konstrukce dle ČSN 73 0540-2:2011, tab. 3 :",{"$nulls":12},"1. Výplň otvoru ve vnější stěně a strmé střeše, z vytápěného prostoru do venkovního prostředí, kromě dveří"]
[38,"Pro tuto konstrukci je památkovou péčí stanoven zvláštní postup při provádění : ",{"$nulls":23},"Ne"]
[39,"Plocha konstrukce (dle energetického hodnocení) :",{"$nulls":23},3.6,{"$nulls":3},"m2"]
[40,"Součinitel prostupu tepla výplně otvoru stanovený pro dané rozměry Uw/UD :",{"$nulls":23},0.9,{"$nulls":3},"W.m-2.K-1"]
[41,"Součinitel prostupu tepla výplně Ug **:",{"$nulls":27},"W.m-2.K-1"]
[42,"Součinitel prostupu tepla rámu Uf **:",{"$nulls":27},"W.m-2.K-1"]
[43,"Lineární činitel prostupu tepla ψg **:",{"$nulls":27},"W.m-1.K-1"]
[44,"Výška profilu rámu **:",{"$nulls":27},"mm"]
[45,"Celkový činitel prostupu solární energie g :",{"$nulls":23},{"v":0.5,"d":"0.50"},{"$nulls":3},"-"]
[46,"Název výrobku (typové označení) **:",{"$nulls":23},"Kód SVT *:"]
[]
[47,"Název/označení konstrukce v odborném posudku :",{"$nulls":15},"VYP-5"]
[{"$f":"1+A58","v":48},"Typ konstrukce dle ČSN 73 0540-2:2011, tab. 3 :",{"$nulls":12},"2. Šikmá výplň otvoru se sklonem do 45°, z vytápěného prostoru do venkovního prostředí"]
[49,"Pro tuto konstrukci je památkovou péčí stanoven zvláštní postup při provádění : ",{"$nulls":23},"Ne"]
[50,"Plocha konstrukce (dle energetického hodnocení) :",{"$nulls":23},2.1,{"$nulls":3},"m2"]
[51,"Součinitel prostupu tepla výplně otvoru stanovený pro dané rozměry Uw/UD :",{"$nulls":23},1.4,{"$nulls":3},"W.m-2.K-1"]
[52,"Součinitel prostupu tepla výplně Ug **:",{"$nulls":27},"W.m-2.K-1"]
[53,"Součinitel prostupu tepla rámu Uf **:",{"$nulls":27},"W.m-2.K-1"]
[54,"Lineární činitel prostupu tepla ψg **:",{"$nulls":27},"W.m-1.K-1"]
[55,"Výška profilu rámu **:",{"$nulls":27},"mm"]
[56,"Celkový činitel prostupu solární energie g :",{"$nulls":23},0.51,{"$nulls":3},"-"]
[57,"Název výrobku (typové označení) **:",{"$nulls":23},"Kód SVT *:"]
[]
[58,"Název/označení konstrukce v odborném posudku :",{"$nulls":15},"VYP-6"]
[{"$f":"1+A70","v":59},"Typ konstrukce dle ČSN 73 0540-2:2011, tab. 3 :",{"$nulls":12},"2. Šikmá výplň otvoru se sklonem do 45°, z vytápěného prostoru do venkovního prostředí"]
[60,"Pro tuto konstrukci je památkovou péčí stanoven zvláštní postup při provádění : ",{"$nulls":23},"Ne"]
[61,"Plocha konstrukce (dle energetického hodnocení) :",{"$nulls":23},3.2,{"$nulls":3},"m2"]
[62,"Součinitel prostupu tepla výplně otvoru stanovený pro dané rozměry Uw/UD :",{"$nulls":23},1.4,{"$nulls":3},"W.m-2.K-1"]
[63,"Součinitel prostupu tepla výplně Ug **:",{"$nulls":27},"W.m-2.K-1"]
[64,"Součinitel prostupu tepla rámu Uf **:",{"$nulls":27},"W.m-2.K-1"]
[65,"Lineární činitel prostupu tepla ψg **:",{"$nulls":27},"W.m-1.K-1"]
[66,"Výška profilu rámu **:",{"$nulls":27},"mm"]
[67,"Celkový činitel prostupu solární energie g :",{"$nulls":23},0.51,{"$nulls":3},"-"]
[68,"Název výrobku (typové označení) **:",{"$nulls":23},"Kód SVT *:"]
[]
[null,"Část B - Podpis energetického specialisty"]
[]
[69,"V",{"$nulls":7},"dne",null,"1.7.2016"]
[]
[{"$nulls":19},"Ing. Jan Zelený CSc"]
[{"$nulls":19},"jméno, příjmení (hůlkovým písmem), podpis energetického specialisty"]
[]
[]
[]
[]
[null,"Stěna vnější "]
[null,"Střecha strmá se sklonem nad 45° "]
[null,"Střecha plochá a šikmá se sklonem do 45° včetně "]
[null,"Strop s podlahou nad venkovním prostorem "]
[null,"Strop pod nevytápěnou půdou (se střechou bez tepelné izolace) "]
[null,"Stěna k nevytápěné půdě (se střechou bez tepelné izolace) "]
[null,"Podlaha a stěna vytápěného prostoru přilehlá k zemině "]
[null,"Strop a stěna vnitřní z vytápěného k nevytápěnému prostoru "]
[null,"Strop a stěna vnitřní z vytápěného k temperovanému prostoru "]
[null,"Strop a stěna vnější z temperovaného prostoru k venkovnímu prostředí "]
[null,"Podlaha a stěna temperovaného prostoru přilehlá k zemině "]
[null,"Stěna mezi sousedními budovami "]
[null,"Strop mezi prostory s rozdílem teplot do 10 °C včetně "]
[null,"Stěna mezi prostory s rozdílem teplot do 10 °C včetně "]
[null,"Strop vnitřní mezi prostory s rozdílem teplot do 5 °C včetně "]
[null,"Stěna vnitřní mezi prostory s rozdílem teplot do 5 °C včetně "]
[]
[]
[null,"Ano"]
[null,"Ne"]
[]
[]
[null,"1. Výplň otvoru ve vnější stěně a strmé střeše, z vytápěného prostoru do venkovního prostředí, kromě dveří"]
[null,"2. Šikmá výplň otvoru se sklonem do 45°, z vytápěného prostoru do venkovního prostředí"]
[null,"3. Dveřní výplň otvoru z vytápěného prostoru do venkovního prostředí (včetně rámu)"]
[null,"4. Výplň otvoru vedoucí z vytápěného do temperovaného prostoru "]
[null,"5. Výplň otvoru vedoucí z temperovaného prostoru do venkovního prostředí "]
[null,"6. Šikmá výplň otvoru se sklonem do 45° vedoucí z temperovaného prostoru do venkovního prostředí"]
[null,"7. Lehký obvodový plášť (LOP)"]

{"sheet":"Příloha č. 2 krycího listu (2)","index":4,"n_rows":120,"n_cols":33,"rows_kept":120,"merged":[[0,1,1,32],[2,1,2,24],[2,25,2,32],[6,1,7,32],[9,1,9,16],[9,17,9,32],[10,14,10,32],[11,25,11,32],[12,1,12,24],[12,25,12,28],[13,25,13,28],[14,25,14,28],[15,25,15,28],[16,25,16,28],[17,25,17,28],[18,25,18,28],[19,11,19,24],[19,25,19,28],[19,29,19,32],[21,1,21,16],[21,17,21,32],[22,14,22,32],[23,25,23,32],[24,1,24,24],[24,25,24,28],[25,25,25,28],[26,25,26,28],[27,25,27,28],[28,25,28,28],[29,25,29,28],[30,25,30,28],[31,11,31,24],[31,25,31,28],[31,29,31,32],[33,1,33,16],[33,17,33,32],[34,14,34,32],[35,25,35,32],[36,1,36,24],[36,25,36,28],[37,25,37,28],[38,25,38,28],[39,25,39,28],[40,25,40,28],[41,25,41,28],[42,25,42,28],[43,11,43,24],[43,25,43,28],[43,29,43,32],[45,1,45,16],[45,17,45,32],[46,14,46,32],[47,25,47,32],[48,1,48,24],[48,25,48,28],[49,25,49,28],[50,25,50,28],[51,25,51,28],[52,25,52,28],[53,25,53,28],[54,25,54,28],[55,11,55,24],[55,25,55,28],[55,29,55,32],[57,1,57,16],[57,17,57,32],[58,14,58,32],[59,25,59,32],[60,1,60,24],[60,25,60,28],[61,25,61,28],[62,25,62,28],[63,25,63,28],[64,25,64,28],[65,25,65,28],[66,25,66,28],[67,11,67,24],[67,25,67,28],[67,29,67,32],[69,1,69,16],[69,17,69,32],[70,14,70,32],[71,25,71,32],[72,1,72,24],[72,25,72,28],[73,25,73,28],[74,25,74,28],[75,25,75,28],[76,25,76,28],[77,25,77,28],[78,25,78,28],[79,11,79,24],[79,25,79,28],[79,29,79,32],[83,2,83,8],[83,11,83,17],[85,19,85,32],[86,19,87,32],[88,1,88,32]]}
[null,"Příloha č. 2 - Soupis měněných výplní otvorů na obálce budovy                               \n\n"]
[]
[1,"ČÍSLO ŽÁDOSTI :",{"$nulls":23},{"$f":"IF(ISNUMBER('Krycí list - oblast podpory A'!Z6:AG6),'Krycí list - oblast podpory A'!Z6:AG6,\"\")","v":""}]
[]
[2,"Část A - Parametry konstrukcí",{"$nulls":21},"ČÍSLO LISTU *",{"$nulls":5},2,"Z",null,2]
[]
[null,"Poznámka: Zapisují se pouze podporované výplně otvorů s různými parametry. Například, v případě, že mají všechny podporované výplně otvorů shodné parametry, bude zapsán pouze jeden výrobek."]
[]
[]
[3,"Název/označení konstrukce v odborném posudku :",{"$nulls":15},"VYP-7"]
[{"$f":"1+A10","v":4},"Typ konstrukce dle ČSN 73 0540-2:2011, tab. 3 :",{"$nulls":12},"3. Dveřní výplň otvoru z vytápěného prostoru do venkovního prostředí (včetně rámu)"]
[5,"Pro tuto konstrukci je památkovou péčí stanoven zvláštní postup při provádění : ",{"$nulls":23},"Ne"]
[6,"Plocha konstrukce (dle energetického hodnocení) :",{"$nulls":23},2,{"$nulls":3},"m2"]
[7,"Součinitel prostupu tepla výplně otvoru stanovený pro dané rozměry Uw/UD :",{"$nulls":23},1.5,{"$nulls":3},"W.m-2.K-1"]
[8,"Součinitel prostupu tepla výplně Ug **:",{"$nulls":27},"W.m-2.K-1"]
[9,"Součinitel prostupu tepla rámu Uf **:",{"$nulls":27},"W.m-2.K-1"]
[10,"Lineární činitel prostupu tepla ψg **:",{"$nulls":27},"W.m-1.K-1"]
[11,"Výška profilu rámu **:",{"$nulls":27},"mm"]
[12,"Celkový činitel prostupu solární energie g :",{"$nulls":23},{"v":0.5,"d":"0.50"},{"$nulls":3},"-"]
[13,"Název výrobku (typové označení) **:",{"$nulls":23},"Kód SVT *:"]
[]
[14,"Název/označení konstrukce v odborném posudku :"]
[{"$f":"1+A22","v":15},"Typ konstrukce dle ČSN 73 0540-2:2011, tab. 3 :"]
[16,"Pro tuto konstrukci je památkovou péčí stanoven zvláštní postup při provádění : ",{"$nulls":23},"Ne"]
[17,"Plocha konstrukce (dle energetického hodnocení) :",{"$nulls":27},"m2"]
[18,"Součinitel prostupu tepla výplně otvoru stanovený pro dané rozměry Uw/UD :",{"$nulls":27},"W.m-2.K-1"]
[19,"Součinitel prostupu tepla výplně Ug **:",{"$nulls":27},"W.m-2.K-1"]
[20,"Součinitel prostupu tepla rámu Uf **:",{"$nulls":27},"W.m-2.K-1"]
[21,"Lineární činitel prostupu tepla ψg **:",{"$nulls":27},"W.m-1.K-1"]
[22,"Výška profilu rámu **:",{"$nulls":27},"mm"]
[23,"Celkový činitel prostupu solární energie g :",{"$nulls":27},"-"]
[24,"Název výrobku (typové označení) **:",{"$nulls":23},"Kód SVT *:"]
[]
[25,"Název/označení konstrukce v odborném posudku :"]
[{"$f":"1+A34","v":26},"Typ konstrukce dle ČSN 73 0540-2:2011, tab. 3 :"]
[27,"Pro tuto konstrukci je památkovou péčí stanoven zvláštní postup při provádění : ",{"$nulls":23},"Ne"]
[28,"Plocha konstrukce (dle energetického hodnocení) :",{"$nulls":27},"m2"]
[29,"Součinitel prostupu tepla výplně otvoru stanovený pro dané rozměry Uw/UD :",{"$nulls":27},"W.m-2.K-1"]
[30,"Součinitel prostupu tepla výplně Ug **:",{"$nulls":27},"W.m-2.K-1"]
[31,"Součinitel prostupu tepla rámu Uf **:",{"$nulls":27},"W.m-2.K-1"]
[32,"Lineární činitel prostupu tepla ψg **:",{"$nulls":27},"W.m-1.K-1"]
[33,"Výška profilu rámu **:",{"$nulls":27},"mm"]
[34,"Celkový činitel prostupu solární energie g :",{"$nulls":27},"-"]
[35,"Název výrobku (typové označení) **:",{"$nulls":23},"Kód SVT *:"]
[]
[36,"Název/označení konstrukce v odborném posudku :"]
[{"$f":"1+A46","v":37},"Typ konstrukce dle ČSN 73 0540-2:2011, tab. 3 :"]
[38,"Pro tuto konstrukci je památkovou péčí stanoven zvláštní postup při provádění : ",{"$nulls":23},"Ne"]
[39,"Plocha konstrukce (dle energetického hodnocení) :",{"$nulls":27},"m2"]
[40,"Součinitel prostupu tepla výplně otvoru stanovený pro dané rozměry Uw/UD :",{"$nulls":27},"W.m-2.K-1"]
[41,"Součinitel prostupu tepla výplně Ug **:",{"$nulls":27},"W.m-2.K-1"]
[42,"Součinitel prostupu tepla rámu Uf **:",{"$nulls":27},"W.m-2.K-1"]
[43,"Lineární činitel prostupu tepla ψg **:",{"$nulls":27},"W.m-1.K-1"]
[44,"Výška profilu rámu **:",{"$nulls":27},"mm"]
[45,"Celkový činitel prostupu solární energie g :",{"$nulls":27},"-"]
[46,"Název výrobku (typové označení) **:",{"$nulls":23},"Kód SVT *:"]
[]
[47,"Název/označení konstrukce v odborném posudku :"]
[{"$f":"1+A58","v":48},"Typ konstrukce dle ČSN 73 0540-2:2011, tab. 3 :"]
[49,"Pro tuto konstrukci je památkovou péčí stanoven zvláštní postup při provádění : ",{"$nulls":23},"Ne"]
[50,"Plocha konstrukce (dle energetického hodnocení) :",{"$nulls":27},"m2"]
[51,"Součinitel prostupu tepla výplně otvoru stanovený pro dané rozměry Uw/UD :",{"$nulls":27},"W.m-2.K-1"]
[52,"Součinitel prostupu tepla výplně Ug **:",{"$nulls":27},"W.m-2.K-1"]
[53,"Součinitel prostupu tepla rámu Uf **:",{"$nulls":27},"W.m-2.K-1"]
[54,"Lineární činitel prostupu tepla ψg **:",{"$nulls":27},"W.m-1.K-1"]
[55,"Výška profilu rámu **:",{"$nulls":27},"mm"]
[56,"Celkový činitel prostupu solární energie g :",{"$nulls":27},"-"]
[57,"Název výrobku (typové označení) **:",{"$nulls":23},"Kód SVT *:"]
[]
[58,"Název/označení konstrukce v odborném posudku :"]
[{"$f":"1+A70","v":59},"Typ konstrukce dle ČSN 73 0540-2:2011, tab. 3 :"]
[60,"Pro tuto konstrukci je památkovou péčí stanoven zvláštní postup při provádění : ",{"$nulls":23},"Ne"]
[61,"Plocha konstrukce (dle energetického hodnocení) :",{"$nulls":27},"m2"]
[62,"Součinitel prostupu tepla výplně otvoru stanovený pro dané rozměry Uw/UD :",{"$nulls":27},"W.m-2.K-1"]
[63,"Součinitel prostupu tepla výplně Ug **:",{"$nulls":27},"W.m-2.K-1"]
[64,"Součinitel prostupu tepla rámu Uf **:",{"$nulls":27},"W.m-2.K-1"]
[65,"Lineární činitel prostupu tepla ψg **:",{"$nulls":27},"W.m-1.K-1"]
[66,"Výška profilu rámu **:",{"$nulls":27},"mm"]
[67,"Celkový činitel prostupu solární energie g :",{"$nulls":27},"-"]
[68,"Název výrobku (typové označení) **:",{"$nulls":23},"Kód SVT *:"]
[]
[null,"Část B - Podpis energetického specialisty"]
[]
[69,"V",{"$nulls":7},"dne",null,"1.7.2016"]
[]
[{"$nulls":19},"Ing. Jan Zelený CSc"]
[{"$nulls":19},"jméno, příjmení (hůlkovým písmem), podpis energetického specialisty"]
[]
[]
[]
[]
[null,"Stěna vnější "]
[null,"Střecha strmá se sklonem nad 45° "]
[null,"Střecha plochá a šikmá se sklonem do 45° včetně "]
[null,"Strop s podlahou nad venkovním prostorem "]
[null,"Strop pod nevytápěnou půdou (se střechou bez tepelné izolace) "]
[null,"Stěna k nevytápěné půdě (se střechou bez tepelné izolace) "]
[null,"Podlaha a stěna vytápěného prostoru přilehlá k zemině "]
[null,"Strop a stěna vnitřní z vytápěného k nevytápěnému prostoru "]
[null,"Strop a stěna vnitřní z vytápěného k temperovanému prostoru "]
[null,"Strop a stěna vnější z temperovaného prostoru k venkovnímu prostředí "]
[null,"Podlaha a stěna temperovaného prostoru přilehlá k zemině "]
[null,"Stěna mezi sousedními budovami "]
[null,"Strop mezi prostory s rozdílem teplot do 10 °C včetně "]
[null,"Stěna mezi prostory s rozdílem teplot do 10 °C včetně "]
[null,"Strop vnitřní mezi prostory s rozdílem teplot do 5 °C včetně "]
[null,"Stěna vnitřní mezi prostory s rozdílem teplot do 5 °C včetně "]
[]
[]
[null,"Ano"]
[null,"Ne"]
[]
[]
[null,"1. Výplň otvoru ve vnější stěně a strmé střeše, z vytápěného prostoru do venkovního prostředí, kromě dveří"]
[null,"2. Šikmá výplň otvoru se sklonem do 45°, z vytápěného prostoru do venkovního prostředí"]
[null,"3. Dveřní výplň otvoru z vytápěného prostoru do venkovního prostředí (včetně rámu)"]
[null,"4. Výplň otvoru vedoucí z vytápěného do temperovaného prostoru "]
[null,"5. Výplň otvoru vedoucí z temperovaného prostoru do venkovního prostředí "]
[null,"6. Šikmá výplň otvoru se sklonem do 45° vedoucí z temperovaného prostoru do venkovního prostředí"]
[null,"7. Lehký obvodový plášť (LOP)"]

{"sheet":"List3","index":5,"n_rows":0,"n_cols":0,"rows_kept":0,"hidden":true}